Cogmind - Beta 11.1 @@@ ROGUE MODE // 2022.07.30 @ 09:48:39 Player: Benkyo Result: Heading to fleet! Performance ------------- Evolutions (9) 4500 Regions Visited (37) 7400 Robots Destroyed (465) 2325 Value Destroyed (24732) 24732 Prototype IDs (92) 1840 Alien Tech Used (21) 4200 Bonus (32103) 32103 TOTAL SCORE: 77100 Bonus ------- High Alert Combat Kills 1921 Follower Combat Kills 1197 Network Hubs Disabled 400 Met Data Miner 300 Met Zhirov 300 Met Warlord at Base 500 MAIN.C Attacked Warlord 500 Warlord Defense Kills 326 Met R17 at Cetus 500 Found Hidden Lab 3000 Used Core Reset Matrix 3000 Pursued by Intercept 1500 Destroyed MAIN.C Shell 5000 Destroyed MAIN.C 10000 Met Warlord at Command 2000 Win 3000 Friendly Fire -1341 Cogmind --------- Core Integrity 1701/1850 Matter 300/300 Energy 950/950 System Corruption 0% Temperature Cool (0) Movement Immobile (Siege) Ox1 Location To Fleet Rendezvous Parts ------- > --- POWER (3) -------- Improved Quantum Reactor Vortex Chain Reactor > --- PROPULSION (6) --- Biometal Heavy Treads Biometal Heavy Treads Biometal Heavy Treads > --- UTILITY (13) ----- Experimental Power Amplifier Experimental Cooling System Huge Storage Unit Experimental Optical Array Advanced Signal Interpreter Experimental Targeting Computer Experimental Core Analyzer Heavy Regenerative Plating Phase Armor AEGIS Remote Shield Deep Network Scanner > --- WEAPON (4) ------- L-Cannon > --- INVENTORY (25) --- Advanced Heavy Siege Treads Experimental Coolant Injector Experimental Sensor Array Advanced Terrain Scanner Long-range Tractor Beam Advanced Drone Bay (2/2) High-powered Transdimensional Reconstructor Spacefold Activator Microwarp Drive Vortex Shotgun (50) Vortex Shotgun (50) Enhanced Nova Cannon Core Cannon Sigix Shearcannon Helical Railgun Micro-nuke Launcher Vortex Catalyst Activator (10) Sigix Broadsword Peak State ------------ > --- POWER ------------ Improved Quantum Reactor Vortex Chain Reactor > --- PROPULSION ------- Biometal Heavy Treads Biometal Heavy Treads Biometal Heavy Treads > --- UTILITY ---------- Experimental Power Amplifier Experimental Cooling System Huge Storage Unit Experimental Optical Array Advanced Signal Interpreter Experimental Targeting Computer Experimental Core Analyzer Heavy Regenerative Plating Phase Armor AEGIS Remote Shield Deep Network Scanner > --- WEAPON ----------- L-Cannon > --- INVENTORY -------- Advanced Heavy Siege Treads Experimental Coolant Injector Experimental Sensor Array Advanced Terrain Scanner Long-range Tractor Beam Advanced Drone Bay High-powered Transdimensional Reconstructor Spacefold Activator Microwarp Drive Vortex Shotgun Vortex Shotgun Enhanced Nova Cannon Core Cannon Sigix Shearcannon Helical Railgun Micro-nuke Launcher Vortex Catalyst Activator Sigix Broadsword [Rating: 276] Favorites ----------- Power Quantum Reactor Engine Improved Deuterium Engine Power Core Light Nuclear Core Reactor Quantum Reactor Propulsion Centrium Heavy Treads Treads Centrium Heavy Treads Leg Armored Leg Wheel Armored Wheel Hover Unit Cooled Gravmag System Utility Huge Storage Unit Device Advanced Heat Sink Storage Huge Storage Unit Processor Improved Signal Interpreter Hackware Hacking Suite Protection Centrium Medium Armor Plating Artifact LC Capacitor Weapon Advanced KE Penetrator Energy Gun Advanced Variable Charge Gun Energy Cannon Heavy Particle Cannon Ballistic Gun Advanced KE Penetrator Ballistic Cannon Hardcell Cannon Launcher Missile Launcher Special Weapon Improved Plasma Cutter Impact Weapon Power Maul Slashing Weapon Sigix Broadsword Build | -11 -10 -10 -9 -9 -9 -8 -8 -7 -7 -7 -7 -6 -6 -6 -6 -6 -6 -5 -5 -5 -5 -5 -5 -4 -4 -4 -4 -4 -3 -3 -3 -3 -2 -2 -2 -1 -1 ------- Run | Scr Mat Min Mat Min Exi Min Mat Fac Low Low Dat Pro Fac Ext Cet Arc Hub Fac Was Fac Upp Upp War Pro Fac Upp Upp Zhi Pro Res Arm Lab Res Qua Sec Acc Com Slots Evolved 18 | . . . 2 . . . 2 2 . . . . 2 . . . . 2 . . . . . . 2 . . . . 2 . . 2 . . 2 . Power 2 | . . . . . . . . . . . . . 1 . . . . . . . . . . . . . . . . . . . 1 . . . . Propulsion 4 | . . . . . . . . . . . . . . . . . . 2 . . . . . . 2 . . . . . . . . . . . . Utility 10 | . . . 2 . . . 2 2 . . . . 1 . . . . . . . . . . . . . . . . 2 . . 1 . . . . Weapon 2 | . . . . . . . . . . . . . . . . . . . . . . . . . . . . . . . . . . . . 2 . Parts Attached 754 | 7 9 5 24 3 3 7 56 6 4 8 . 20 14 18 46 10 9 2 15 29 14 12 10 10 24 21 14 11 25 28 2 26 46 47 125 33 11 Power 38 | 1 . 1 4 . . 2 5 1 . . . 3 2 2 4 . . . . 1 . 1 1 . . . . 2 . . . 2 3 1 2 . . Engine 16 | 1 . 1 4 . . 1 3 1 . . . 1 2 1 . . . . . . . 1 . . . . . . . . . . . . . . . Core 6 | . . . . . . 1 2 . . . . 1 . 1 1 . . . . . . . . . . . . . . . . . . . . . . Reactor 16 | . . . . . . . . . . . . 1 . . 3 . . . . 1 . . 1 . . . . 2 . . . 2 3 1 2 . . Propulsion 59 | 2 . 2 5 2 . 1 12 . 1 2 . 4 2 . 4 . . 1 . 1 . . . . 5 . . 2 . 1 . 1 3 4 1 3 . Treads 44 | 2 . 2 4 1 . 1 9 . 1 1 . 1 . . 2 . . 1 . 1 . . . . 4 . . 1 . 1 . 1 3 4 1 3 . Leg 4 | . . . . . . . . . . . . 3 . . 1 . . . . . . . . . . . . . . . . . . . . . . Wheel 10 | . . . 1 1 . . 3 . . 1 . . 2 . 1 . . . . . . . . . 1 . . . . . . . . . . . . Hover 1 | . . . . . . . . . . . . . . . . . . . . . . . . . . . . 1 . . . . . . . . . Flight . | . . . . . . . . . . . . . . . . . . . . . . . . . . . . . . . . . . . . . . Utility 486 | 2 4 1 10 1 . 3 28 4 1 4 . 6 10 14 21 7 9 1 11 25 10 11 7 5 18 18 12 4 16 26 2 11 32 27 91 25 9 Device 303 | 1 1 . 3 . . 1 6 1 1 2 . 2 5 8 12 5 5 1 8 13 5 5 4 3 10 11 8 3 10 13 1 7 21 17 78 24 8 Storage 8 | 1 1 . . . . . 2 . . . . . . . . . . . . 3 . . . . . . . 1 . . . . . . . . . Processor 19 | . 1 . . . . . 1 1 . 1 . . . 1 1 . . . . . 1 1 1 . . . 1 . . 1 . . 2 1 3 1 1 Hackware 7 | . . . . . . . 2 . . . . . . . . . 2 . . . . . . . 2 . . . . . . . . . 1 . . Protection 140 | . 1 1 7 1 . 2 17 2 . 1 . 4 5 5 8 2 2 . 3 9 4 5 2 2 6 7 3 . 6 12 1 3 9 8 2 . . Artifact 9 | . . . . . . . . . . . . . . . . . . . . . . . . . . . . . . . . 1 . 1 7 . . Weapon 171 | 2 5 1 5 . 3 1 11 1 2 2 . 7 . 2 17 3 . . 4 2 4 . 2 5 1 3 2 3 9 1 . 12 8 15 31 5 2 Energy Gun 18 | . 1 1 . . . . 1 . . . . . . . 5 2 . . 1 . . . 1 . 1 . . . 1 . . 3 . . . 1 . Energy Cannon 38 | . . . 1 . 1 . 1 1 . 1 . 3 . 1 1 . . . . 1 1 . 1 2 . 3 2 . 2 1 . 2 2 1 6 3 1 Ballistic Gun 69 | 2 2 . 3 . 2 1 8 . 1 . . 2 . . 9 1 . . 1 1 2 . . 1 . . . 1 1 . . 4 3 7 17 . . Ballistic Cannon 3 | . . . . . . . . . . . . . . . . . . . . . . . . . . . . 1 2 . . . . . . . . Launcher 19 | . . . . . . . 1 . 1 1 . 1 . 1 2 . . . 2 . 1 . . 2 . . . . 3 . . . 3 1 . . . Special Weapon 2 | . . . . . . . . . . . . . . . . . . . . . . . . . . . . 1 . . . 1 . . . . . Impact Weapon 7 | . 2 . 1 . . . . . . . . . . . . . . . . . . . . . . . . . . . . 2 . 2 . . . Slashing Weapon 15 | . . . . . . . . . . . . 1 . . . . . . . . . . . . . . . . . . . . . 4 8 1 1 Piercing Weapon . | . . . . . . . . . . . . . . . . . . . . . . . . . . . . . . . . . . . . . . Special Melee Weapon . | . . . . . . . . . . . . . . . . . . . . . . . . . . . . . . . . . . . . . . Unidentified Prototypes 48 | . . . . . . . . . . . . 3 . . 4 . . . 1 . 1 . 5 . . . . 4 1 . 1 9 6 5 8 . . Parts Lost 68 | . 1 . 5 1 . 3 17 . 1 1 . 5 . 1 21 . 1 . . . 1 2 1 . 3 1 . . . 1 . . 2 . . . . Power 6 | . . . 1 . . 1 2 . . . . . . . 2 . . . . . . . . . . . . . . . . . . . . . . Propulsion 10 | . . . 1 . . 1 3 . 1 1 . 1 . . 2 . . . . . . . . . . . . . . . . . . . . . . Utility 34 | . 1 . 2 1 . . 6 . . . . 3 . 1 10 . 1 . . . 1 2 . . 2 1 . . . 1 . . 2 . . . . Weapon 18 | . . . 1 . . 1 6 . . . . 1 . . 7 . . . . . . . 1 . 1 . . . . . . . . . . . . Highest Loss Streak 12 | . 1 . 3 1 . 2 8 . 1 1 . 3 . 1 12 . 1 . . . 1 2 1 . 2 1 . . . 1 . . 1 . . . . To Critical Strikes 1 | . . . . . . . . . . . . . . . 1 . . . . . . . . . . . . . . . . . . . . . . Average Slot Usage (%) 88 | . 99 99 99 99 77 99 97 100 100 99 100 94 93 92 85 93 92 88 87 87 82 87 85 83 78 79 75 73 75 78 77 75 75 73 67 73 71 Engine 4 | . 14 14 10 11 11 10 7 7 7 7 7 6 6 2 1 . . . . . . . 2 . . . . . . . . . . . . . . Reactor 4 | . . . . . . . . . . . . . 6 6 6 13 13 11 11 10 11 10 4 5 5 5 5 4 5 4 4 4 11 11 8 7 7 Treads 12 | . 28 28 13 10 11 10 16 . 5 6 7 9 . . 5 6 6 11 11 11 11 11 11 11 14 15 15 14 15 12 13 13 11 12 12 11 11 Wheel 2 | . . . 8 10 11 11 1 15 8 7 7 . 13 13 1 . . . . . . . . . . . . . . . . . . . . . . Device 18 | . 3 . 11 11 11 11 16 21 23 22 23 22 22 20 18 24 22 17 22 22 22 25 25 26 15 19 19 22 24 30 30 27 16 19 12 11 10 Storage 6 | . 15 14 11 11 11 11 9 7 7 7 7 7 6 6 6 6 6 5 5 5 5 5 5 5 5 5 5 5 5 4 4 4 4 4 4 3 3 Processor 7 | . 4 . . . . . . 7 7 14 15 15 13 13 8 6 6 5 5 5 5 5 13 16 14 10 10 10 10 9 9 9 8 8 13 15 15 Hackware 1 | . . . . . . . 9 7 . . . . . . . . 4 5 5 4 . . . . 8 . . . . . . . . . 3 3 3 Protection 12 | . 4 13 21 22 22 22 17 16 23 16 15 9 9 11 16 21 18 17 11 11 11 16 10 5 6 15 10 6 5 6 4 5 7 2 . 3 3 Energy Gun 1 | . 4 14 4 . . . 6 1 . . . . . . 3 6 6 5 . . . . . . 1 2 . . . . . . . . . . . Energy Cannon 4 | . . . 6 11 . 11 2 5 7 6 7 6 6 5 . . . . . 4 4 5 5 4 3 2 5 5 4 3 4 4 3 2 1 3 3 Ballistic Gun 6 | . 23 14 10 11 . 10 9 7 6 7 7 6 6 6 7 5 6 5 . 5 5 5 4 5 5 5 5 3 . 4 4 2 3 2 3 3 2 Naked Turns . | . . . . . . . . . . . . . . . . . . . . . . . . . . . . . . . . . . . . . . Heaviest Build 284 | 14 93 93 102 100 100 104 113 126 127 127 124 127 144 150 157 164 161 156 156 161 165 169 162 157 157 160 159 159 158 165 154 177 221 236 229 239 284 Greatest Support 245 | 40 40 42 42 20 12 20 42 24 24 12 12 56 24 24 80 80 80 160 160 160 160 160 160 160 240 240 240 240 240 240 240 240 230 245 245 245 225 Greatest Overweight (x) 12 | 1 2 2 8 8 8 8 9 5 10 10 10 6 5 6 12 2 2 . . 1 1 1 1 . . . . . . . . . . 1 . 1 1 Average Overweight (x) 2 | . 1 2 6 7 7 7 2 4 8 9 10 3 5 5 2 1 1 . . . . . . . . . . . . . . . . . . . 1 Largest Inventory Capacity 25 | 8 25 25 25 25 25 25 25 25 25 25 25 25 25 25 25 25 25 25 25 25 25 25 25 25 25 25 25 25 25 25 25 25 25 25 25 25 25 Average Capacity 24 | 7 22 25 25 25 25 25 25 25 25 25 25 25 25 25 25 25 25 25 25 25 25 25 25 25 25 25 25 25 25 25 25 25 25 25 25 25 25 Most Carried 25 | 6 25 25 25 25 25 25 25 25 25 25 25 25 25 25 25 25 25 23 25 25 25 25 25 25 25 25 25 25 25 25 25 25 25 25 25 25 25 Average Carried 24 | 4 19 24 24 24 24 24 24 24 24 24 25 24 24 24 22 24 24 21 24 24 24 24 24 24 24 24 24 24 24 24 25 24 24 24 24 24 24 Final Capacity 25 | 8 25 25 25 25 25 25 25 25 25 25 25 25 25 25 25 25 25 25 25 25 25 25 25 25 25 25 25 25 25 25 25 25 25 25 25 25 25 Final Carried 25 | 4 25 25 25 24 23 25 25 25 25 25 25 25 25 25 25 25 24 23 25 25 25 25 25 25 25 25 25 25 25 25 25 25 25 25 24 25 25 Class Distribution -------------------- 57% | Scavenger-Mutant 14% | Scavenger-Skirmisher 12% | Mutant 5% | Skirmisher 3% | Alien-Mutant Dominant Class ---------------- Mutant | -10/Materials Mutant | -10/Mines Scavenger-Mutant | -9/Materials Scavenger-Mutant | -9/Mines Mutant | -9/Exiles Mutant | -8/Mines Scavenger-Mutant | -8/Materials Skirmisher | -7/Factory Scavenger-Skirmisher | -7/Lower Caves Scavenger-Skirmisher | -7/Lower Caves Scavenger-Skirmisher | -7/Data Miner Skirmisher | -6/Proximity Caves Scavenger-Mutant | -6/Factory Scavenger-Mutant | -6/Extension Scavenger-Mutant | -6/Cetus Scavenger-Mutant | -6/Archives Scavenger-Mutant | -6/Hub_04(d) Scavenger-Mutant | -5/Factory Scavenger-Mutant | -5/Waste Scavenger-Mutant | -5/Factory Scavenger-Mutant | -5/Upper Caves Scavenger-Mutant | -5/Upper Caves Scavenger-Mutant | -5/Warlord Scavenger-Mutant | -4/Proximity Caves Scavenger-Mutant | -4/Factory Scavenger-Mutant | -4/Upper Caves Scavenger-Mutant | -4/Upper Caves Scavenger-Mutant | -4/Zhirov Scavenger-Mutant | -3/Proximity Caves Scavenger-Skirmisher | -3/Research Scavenger-Skirmisher | -3/Armory Scavenger-Mutant | -3/Lab Scavenger-Skirmisher | -2/Research Scavenger-Mutant | -2/Quarantine Alien-Mutant | -2/Section 7 Alien-Assassin | -1/Access Alien-Mutant | -1/Command Resources | -11 -10 -10 -9 -9 -9 -8 -8 -7 -7 -7 -7 -6 -6 -6 -6 -6 -6 -5 -5 -5 -5 -5 -5 -4 -4 -4 -4 -4 -3 -3 -3 -3 -2 -2 -2 -1 -1 ----------- Run | Scr Mat Min Mat Min Exi Min Mat Fac Low Low Dat Pro Fac Ext Cet Arc Hub Fac Was Fac Upp Upp War Pro Fac Upp Upp Zhi Pro Res Arm Lab Res Qua Sec Acc Com Matter Collected 14866 | 286 252 135 604 147 . 283 1143 152 125 221 . 338 25 386 940 278 143 . 270 314 371 222 136 248 329 372 264 380 525 521 . 335 986 575 3115 265 180 Remotely 3444 | . . . . . . . . . . . . . . . 324 . . . . 116 . 86 . . 78 . . . . . . . . 320 2285 235 . Salvage Created 25221 | 86 508 149 1715 180 . 815 2035 292 279 297 . 264 190 659 1344 494 630 . 357 570 488 803 130 655 532 739 463 380 502 1120 87 77 1516 1532 3999 625 709 Parts 1192 | 5 38 11 105 4 . 36 97 14 10 12 . 10 17 24 69 22 32 . 2 44 11 23 4 24 33 34 19 17 29 56 4 4 47 48 217 42 28 Haulers Intercepted 13 | . 2 . 5 . . . 5 . . . . . . . . . . . . . . . . . . . . . . 1 . . . . . . . Recyclers Shooed 8 | . . 1 2 . . . . . . . . . . . . . . . . 2 . . . . . . . . . . . . 2 . 1 . . Parts Field Recycled . | . . . . . . . . . . . . . . . . . . . . . . . . . . . . . . . . . . . . . . Retrieved Matter . | . . . . . . . . . . . . . . . . . . . . . . . . . . . . . . . . . . . . . . Parts Self-Destructed 156 | . . . . . . . . . 7 16 . 15 . . . . . . . . 8 24 . 13 . 22 17 9 25 . . . . . . . . Prevented 25 | . . . . . . . . . . . . . . . . . . . . . . . . . . 12 4 . 9 . . . . . . . . Kills | -11 -10 -10 -9 -9 -9 -8 -8 -7 -7 -7 -7 -6 -6 -6 -6 -6 -6 -5 -5 -5 -5 -5 -5 -4 -4 -4 -4 -4 -3 -3 -3 -3 -2 -2 -2 -1 -1 ------- Run | Scr Mat Min Mat Min Exi Min Mat Fac Low Low Dat Pro Fac Ext Cet Arc Hub Fac Was Fac Upp Upp War Pro Fac Upp Upp Zhi Pro Res Arm Lab Res Qua Sec Acc Com Combat Hostiles Destroyed 379 | . 10 4 27 6 . 12 29 5 6 8 . 9 6 17 23 4 6 . . 13 8 12 3 13 10 12 5 . 13 12 1 1 25 16 49 9 5 Guns 181 | . 10 4 16 2 . 3 19 3 . 2 . . . 2 18 4 3 . . 4 2 3 1 7 7 8 2 . . 5 1 1 2 5 43 2 2 Cannons 125 | . . . 11 4 . 9 9 2 3 3 . 3 6 4 2 . . . . 7 2 6 1 . 3 3 3 . 9 6 . . 8 7 6 6 2 AOE 54 | . . . . . . . . . 3 3 . 6 . 11 3 . 1 . . . 3 . . 6 . . . . 4 . . . 12 2 . . . Classes Destroyed 27 | 2 6 . 4 2 . . . 1 . 1 . . . . . . . . . 1 . 1 1 1 . . . . . . 1 . 3 3 . . . Worker 10 | . . . . 1 . . 3 . . . . . . . . . 2 . . . . . . . . . . . . 1 . . 1 1 1 . . Builder 4 | . 1 . . . . . . . . . . . . . . . 2 . . . . . . . 1 . . . . . . . . . . . . Tunneler 5 | 1 . . 1 . . 1 1 . . . . . . . . . 1 . . . . . . . . . . . . . . . . . . . . Hauler 13 | . 2 . 5 . . . 5 . . . . . . . . . . . . . . . . . . . . . . 1 . . . . . . . Recycler 12 | 1 . 1 2 1 . 4 1 . . . . . . . . . . . . . . . . . . . . . . . . . 1 . . . 1 Minesweeper 5 | . . . . . . . . . . . . . . . . . . . . . . 1 . . . 1 2 . 1 . . . . . . . . Mechanic 2 | . . . 1 . . . . . . . . . . . . . . . . . . . . . . . . . . . . . . . 1 . . Operator 10 | . 1 . . . . . . . . . . . . 1 . 5 1 . . . . . . . . . . . . . . . 1 . 1 . . Watcher 27 | . 3 . 4 . . . 4 . . . . . . 2 2 . 4 . . 1 . . . . . . . . . 2 . . . 1 4 . . Swarmer 79 | . 5 4 4 . . 6 . . 2 3 . 5 3 6 3 . . . . 7 . 1 . 4 4 4 . . 10 . . . 4 . 4 . . Grunt 122 | . 5 . 11 1 . 5 19 1 4 3 . 1 . 7 8 . 3 . . . 5 11 1 . . 7 2 . 1 . . . 5 3 19 . . Brawler 4 | . . . 1 . . 1 1 . . . . 1 . . . . . . . . . . . . . . . . . . . . . . . . . Duelist 7 | . . . 1 . . . 1 . . . . . . 1 1 . . . . . . . 1 . . . . . . . . . . 1 1 . . Protector 2 | . . . . . . . . . . . . . . . . . . . . . . . . . . . . . . . . . . 1 1 . . Researcher 1 | . . . . . . . . . . . . . . . . . . . . . . . . . . . . . . . . . . 1 . . . Sentry 50 | . . . 10 . . . 8 3 . . . 1 . 3 . 4 2 . . . 1 . . . 2 . 1 . 1 5 . . 3 . 3 2 1 Demolisher 4 | . . . . . . . . . . . . . . . . . . . . . . . 1 . . . . . . . . . 3 . . . . Specialist 2 | . . . . . . . . . . . . . . . . . . . . . . . . . . . . . . . 1 . . 1 . . . Hunter 16 | . . . . . . . . . . 2 . 1 . . 2 . . . . . . . . 2 . . . . . 4 . . 2 . . 1 2 Programmer 47 | . . . . . . . . 1 . . . . 3 . 1 . 1 . . 5 2 . . . 3 1 1 . 1 3 . . . 5 13 6 1 Heavy 2 | . . . . . . . . . . . . . . . . . . . . 1 . . . . 1 . . . . . . . . . . . . Behemoth 1 | . . . . . . . . . . . . . . . . . . . . . . . . . . . . . . . . . 1 . . . . Cetus Guard 8 | . . . . . . . . . . . . . . . 8 . . . . . . . . . . . . . . . . . . . . . . S7 Guard 2 | . . . . . . . . . . . . . . . . . . . . . . . . . . . . . . . . . . . 2 . . Tracker 4 | . . . . . . . . . . . . . . . . . . . . . . . . . . . . . . . . . . 2 2 . . Combat Programmer 4 | . . . . . . . . . . . . . . . . . . . . . . . . . . . . . . . . . . 2 2 . . Striker 5 | . . . . . . . . . . . . . . . . . . . . . . . . . . . . . . . . . 5 . . . . Executioner 4 | . . . . . . . . . . . . . . . . . . . . . . . . . . . . . . . . . 2 . 2 . . Fortress 1 | . . . . . . . . . . . . . . . . . . . . . . . . . . . . . . . . . . 1 . . . Decomposer 3 | . . . . . . . . . . 2 . . . . . . . . . . . . . . . . 1 . . . . . . . . . . Packrat 3 | . . . . . . . . . 1 . . . . . . . . . . . 1 1 . . . . . . . . . . . . . . . Assembled 5 | . . . . 5 . . . . . . . . . . . . . . . . . . . . . . . . . . . . . . . . . Thug 2 | . . . . . . . . . . . . . . 1 . . . . . . . . . 1 . . . . . . . . . . . . . Savage 5 | . . . . . . . . . . . . . . . . . . . . . . . . 5 . . . . . . . . . . . . . Mutant 2 | . . . . . . . . . . . . . . . . . . . . . . . . 1 . . 1 . . . . . . . . . . Best Kill Streak 10 | 2 7 3 5 3 . 3 5 4 4 3 . 6 3 8 5 4 8 . . 4 5 5 2 5 4 3 1 . 4 4 1 1 7 5 10 3 3 Combat Bots Only 10 | . 4 3 4 3 . 3 4 4 4 3 . 6 3 8 5 1 3 . . 4 5 5 2 5 4 3 1 . 4 3 1 1 6 5 10 3 3 Max Kills in Single Turn 5 | 1 2 1 1 2 . 2 2 1 2 1 . 2 1 3 2 1 5 . . 1 2 1 2 3 2 1 1 . 2 1 1 1 2 2 1 1 1 Gunslinging 1 | . 1 . . . . . . . . . . . . . 1 . . . . . . . . . . . . . . . . . . . . . . Exploded 3 | . . . . . . . . . 2 1 . 2 . 2 2 . 1 . . . 2 . . 3 . . . . 2 . . . 2 2 . . . Melee . | . . . . . . . . . . . . . . . . . . . . . . . . . . . . . . . . . . . . . . Uniques/NPCs Destroyed 3 | . . . . . . . . . . . . . . . 1 . . . . . . . . . . . . . . . . 1 . . . . 1 Revision 17 (-6/Cetus) A5 (-3/Lab) MAIN.C (-1/Command) Combat | -11 -10 -10 -9 -9 -9 -8 -8 -7 -7 -7 -7 -6 -6 -6 -6 -6 -6 -5 -5 -5 -5 -5 -5 -4 -4 -4 -4 -4 -3 -3 -3 -3 -2 -2 -2 -1 -1 -------- Run | Scr Mat Min Mat Min Exi Min Mat Fac Low Low Dat Pro Fac Ext Cet Arc Hub Fac Was Fac Upp Upp War Pro Fac Upp Upp Zhi Pro Res Arm Lab Res Qua Sec Acc Com Damage Taken 31366 | . 442 229 1352 306 . 670 3157 521 299 434 . 676 137 1243 4302 482 736 . . 1087 563 863 689 216 822 1119 254 . 535 1432 163 595 2142 1697 3351 484 368 Core 3259 | . 80 12 195 65 . 75 319 100 33 13 . 6 31 100 584 22 . . . . 20 . 102 9 83 21 . . 24 45 23 26 82 217 844 102 26 Absorbed by Shields 7759 | . . . . . . . . . . . . . . . . . . . . . . 66 115 204 344 . . . . . . . 1803 1559 3090 225 353 Reduced by Siege Mode 1593 | . . . . . . . . . . . . . . . . 21 . . . 71 10 70 4 21 78 120 27 . 67 132 . 69 186 231 436 40 10 Redirected to Core 780 | . . . . . . . . . . . . . . . . . . . . . . . . . . . . . . . . . . 152 549 63 16 Redirected to Shielding 316 | . . . 73 . . 8 18 27 24 34 . 43 . . 89 . . . . . . . . . . . . . . . . . . . . . . Regen/Repaired (Parts) 5520 | . . . 73 . . . 100 . . . . . . 587 . . . . . 1538 . . . . 2021 . . . . 504 . . . . 352 174 171 Core Remaining (%) 64 | 100 . 63 . . . 16 42 . . . . 78 . . . . 13 . . . . . . 86 . . . . 88 . . 100 . . 31 . 91 Volleys Fired 1653 | 4 54 12 119 19 . 46 172 18 29 20 . 24 29 41 91 52 22 . 5 41 16 35 17 23 43 46 31 16 31 66 5 32 82 90 267 40 15 Largest 3 | 2 2 2 2 2 . 2 2 2 2 2 . 2 2 2 2 2 2 . 2 2 2 2 2 2 2 2 2 1 2 2 2 2 2 2 2 2 3 Hottest 900 | 40 40 76 98 98 . 91 94 100 100 100 . 100 115 115 115 160 115 . 69 133 134 133 133 133 275 129 129 20 159 125 125 125 169 169 158 300 900 Shots Fired 2692 | 8 108 24 223 38 1 88 332 36 44 39 . 42 42 69 167 94 35 . 10 78 28 68 21 41 72 72 55 16 59 112 8 56 143 92 280 63 28 Gun 1694 | 8 108 24 156 19 . 41 244 18 15 19 . 18 14 28 157 94 35 . . 38 14 33 4 20 48 57 31 . . 56 3 24 54 23 254 25 12 Cannon 913 | . . . 67 19 1 47 88 18 26 13 . 15 28 36 8 . . . . 40 12 35 17 15 24 15 24 . 51 56 5 32 75 66 26 38 16 Launcher 69 | . . . . . . . . . 3 7 . 9 . 5 2 . . . 10 . 2 . . 6 . . . . 8 . . . 14 3 . . . Special 16 | . . . . . . . . . . . . . . . . . . . . . . . . . . . . 16 . . . . . . . . . Kinetic 1418 | 8 108 12 100 19 . 41 179 18 15 19 . 18 14 28 106 42 15 . . 37 14 33 4 20 33 31 31 . 23 55 3 24 54 23 254 25 12 Thermal 1141 | . . 12 123 19 1 47 153 18 26 13 . 15 28 36 59 52 20 . . 41 12 35 17 15 39 28 2 16 1 57 5 31 75 66 26 38 15 Explosive 69 | . . . . . . . . . 3 7 . 9 . 5 2 . . . 10 . 2 . . 6 . . . . 8 . . . 14 3 . . . Electromagnetic 63 | . . . . . . . . . . . . . . . . . . . . . . . . . . 13 22 . 27 . . 1 . . . . . Slashing 1 | . . . . . . . . . . . . . . . . . . . . . . . . . . . . . . . . . . . . . 1 Robot Hit Streak 66 | 3 12 3 16 5 . 13 14 17 11 6 . 3 6 8 27 21 9 . 12 21 8 17 12 19 15 25 8 19 26 23 2 24 27 28 66 18 9 Robot Miss Streak 6 | 2 4 3 4 4 . 2 6 2 6 3 . 3 2 2 3 4 2 . . 2 2 3 . 1 2 3 2 . 2 3 2 1 3 2 2 2 1 Penetration Max 3 | . . . . . . . . . . . . . . . 1 1 1 . . 1 . 1 . 1 1 . 1 . . 1 . . 1 . 1 1 3 Secondary Targets 10 | . 3 1 2 . . . . . . . . . . . 4 . . . . . . . . . . . . . . . . . . . . . . Max Gunslinging Chain 1 | . 1 1 1 . . . . . . . . . . . 1 . . . . . . . . . . . . . . . . . . . . . . Capacitor 45 | . . . . . . . . . . . . . . . . . . . . . . . . . . . . . . . . . . 45 . . . Shots Hit Robots 1826 | 5 74 11 139 20 . 55 215 31 28 23 . 16 15 35 132 68 19 . 9 54 17 48 6 34 38 49 34 16 38 69 3 45 90 69 266 36 19 Core Hits 975 | 3 31 6 57 11 . 26 75 11 10 16 . 18 8 42 69 23 23 . 4 16 16 18 2 29 19 24 14 11 22 35 2 17 69 36 188 15 9 Critical Kills 43 | . . . . . . . 1 . . . . . . . 6 1 1 . . 3 2 4 2 3 1 2 3 . . 3 . . 3 1 4 2 1 Critical Parts Destroyed 39 | . . . 1 . . . 1 . . . . . . . 6 5 . . . 5 . 4 . 2 3 1 2 . . 4 . . . 1 3 1 . Critical Strikes 100 | . . . 4 . . . 6 . . . . . . . 14 7 1 . . 8 3 8 2 5 4 3 5 1 1 8 . 2 3 2 8 3 2 Burn 8 | . . . 3 . . . 4 . . . . . . . 1 . . . . . . . . . . . . . . . . . . . . . . Meltdown 14 | . . . . . . . 1 . . . . . . . . . . . . 2 1 3 1 . . . . . . 1 . . 3 1 . 1 . Destroy 75 | . . . 1 . . . 1 . . . . . . . 13 7 1 . . 6 2 5 1 5 4 3 5 . . 7 . 2 . . 8 2 2 Corrupt 1 | . . . . . . . . . . . . . . . . . . . . . . . . . . . . . 1 . . . . . . . . Smash 1 | . . . . . . . . . . . . . . . . . . . . . . . . . . . . . . . . . . 1 . . . Sever 1 | . . . . . . . . . . . . . . . . . . . . . . . . . . . . 1 . . . . . . . . . Melee Attacks 48 | . 7 . 1 . . . . . . . . . . . . . . . . . . . . . . . . . . . . 10 . 17 9 3 1 Kinetic 1 | . . . . . . . . . . . . . . . . . . . . . . . . . . . . . . . . . . 1 . . . Impact 21 | . 7 . 1 . . . . . . . . . . . . . . . . . . . . . . . . . . . . 10 . 3 . . . Slashing 26 | . . . . . . . . . . . . . . . . . . . . . . . . . . . . . . . . . . 13 9 3 1 Piercing . | . . . . . . . . . . . . . . . . . . . . . . . . . . . . . . . . . . . . . . Sneak Attacks 3 | . . . . . . . . . . . . . . . . . . . . . . . . . . . . . . . . . . 2 . . 1 Combat Hostiles . | . . . . . . . . . . . . . . . . . . . . . . . . . . . . . . . . . . . . . . Follow-up Attacks . | . . . . . . . . . . . . . . . . . . . . . . . . . . . . . . . . . . . . . . Damage Inflicted 61667 | 52 803 162 2481 437 . 1077 4028 671 811 676 . 1077 488 2350 3627 1857 1657 . 927 1708 972 1568 216 1656 1476 1559 1084 304 1578 2126 93 1002 6280 3839 10462 1754 809 Guns 30995 | 52 803 162 1482 160 . 383 2713 240 152 174 . 130 108 226 3205 1857 561 . . 676 249 578 79 637 1088 1070 504 . . 827 58 440 1110 764 9656 584 267 Cannons 19603 | . . . 999 277 . 694 1297 431 425 200 . 181 380 753 175 . . . . 1032 294 990 137 359 388 489 580 . 1149 1296 35 562 2130 2005 806 1170 369 Explosions 10113 | . . . . . . . . . 234 302 . 766 . 1360 247 . 1096 . 927 . 429 . . 660 . . . . 429 . . . 3040 623 . . . Melee 620 | . . . . . . . . . . . . . . . . . . . . . . . . . . . . . . . . . . 447 . . 173 Ramming 32 | . . . . . . . 18 . . . . . . 11 . . . . . . . . . . . . . . . 3 . . . . . . . Kinetic 26669 | 52 803 60 842 160 . 383 1832 240 152 174 . 130 108 226 1910 888 285 . . 676 249 578 79 637 736 695 504 . 564 827 58 440 1110 764 9656 584 267 Thermal 23046 | . . 102 1639 277 . 694 2178 431 425 200 . 181 380 1082 1470 969 276 . . 1032 294 990 137 359 740 467 94 304 . 1296 35 562 2130 2005 806 1170 321 Explosive 8688 | . . . . . . . . . 234 302 . 766 . 1031 247 . . . 927 . 429 . . 660 . . . . 429 . . . 3040 623 . . . Electromagnetic 2564 | . . . . . . . . . . . . . . . . . 1096 . . . . . . . . 397 486 . 585 . . . . . . . . Impact 240 | . . . . . . . . . . . . . . . . . . . . . . . . . . . . . . . . . . 240 . . . Slashing 428 | . . . . . . . . . . . . . . . . . . . . . . . . . . . . . . . . . . 207 . . 221 Piercing . | . . . . . . . . . . . . . . . . . . . . . . . . . . . . . . . . . . . . . . Highest Corruption 16 | . . . 4 4 4 4 . . . . . . 2 2 1 1 4 . . . 1 . . . 2 . . . . 2 . 5 . 16 . . . Average Corruption 4 | . . . 3 4 4 4 . . . . . . 1 1 1 1 1 . . . 1 . . . 1 . . . . 1 . 4 . 13 . . . Corruption Purged 10 | . . . . . . . . . . . . . . 4 . 1 . . . . 1 . . . 2 . . . . 2 . . . . . . . Corruption Blocked 27 | . . . . . . . . . . . . . . . . . . . . . . . . . . . . . . . . . 27 . . . . Effects 173 | . . . 57 32 6 19 . . . . . . 2 8 3 4 1 . . . . . . . . . . . . . . 13 . 28 . . . Message Errors 46 | . . . 17 9 1 3 . . . . . . . 2 1 1 1 . . . . . . . . . . . . . . 4 . 7 . . . Matter Fused 42 | . . . 12 8 3 3 . . . . . . . 2 2 . . . . . . . . . . . . . . . . 2 . 10 . . . Heat Flow Errors 23 | . . . 3 5 1 5 . . . . . . 2 1 . . . . . . . . . . . . . . . . . 2 . 4 . . . Energy Discharges 21 | . . . 9 4 . 3 . . . . . . . 2 . . . . . . . . . . . . . . . . . 2 . 1 . . . Parts Rejected 1 | . . . 1 . . . . . . . . . . . . . . . . . . . . . . . . . . . . . . . . . . Data Loss (minor) 14 | . . . 2 4 . 3 . . . . . . . . . 1 . . . . . . . . . . . . . . . 2 . 2 . . . Data Loss (major) 9 | . . . 6 . . 1 . . . . . . . . . . . . . . . . . . . . . . . . . 1 . 1 . . . Misfires 9 | . . . 5 1 1 1 . . . . . . . . . . . . . . . . . . . . . . . . . . . 1 . . . Alerts 2 | . . . 1 . . . . . . . . . . 1 . . . . . . . . . . . . . . . . . . . . . . . Weapon Failures 6 | . . . 1 1 . . . . . . . . . . . 2 . . . . . . . . . . . . . . . . . 2 . . . Overload Shots 4 | . . . . . . . . . . . . . . . . . . . . . . . . . 4 . . . . . . . . . . . . Overflow Damage 1152 | . . . 5 2 . 4 25 . 33 39 . 13 8 10 . . 41 . 32 32 . 43 . 57 2 27 70 20 99 . . 17 71 360 39 . 103 Projectiles 506 | . . . 5 2 . 4 25 . 33 20 . . 8 . . . . . . 32 . 43 . 24 2 27 70 20 86 . . 17 . 49 39 . . Explosions 260 | . . . . . . . . . . 19 . 13 . 10 . . 41 . 32 . . . . 33 . . . . 13 . . . 71 28 . . . Melee 386 | . . . . . . . . . . . . . . . . . . . . . . . . . . . . . . . . . . 283 . . 103 Knockbacks 2 | . . . . . . . . . . . . . . . . . . . . . . . . . . . . . 1 . . . . 1 . . . Impact 1 | . . . . . . . . . . . . . . . . . . . . . . . . . . . . . . . . . . 1 . . . Kinetic 1 | . . . . . . . . . . . . . . . . . . . . . . . . . . . . . 1 . . . . . . . . Secondary . | . . . . . . . . . . . . . . . . . . . . . . . . . . . . . . . . . . . . . . Self-Inflicted Damage 508 | . . . . . . . . . 11 97 . . . 126 . . 143 . . . 42 . . . . . . . . . . . 12 77 . . . Shots 16 | . . . . . . . . . 1 3 . . . 5 . . 2 . . . 2 . . . . . . . . . . . 1 2 . . . Rammed 4 | . . . . . . . 1 . . . . . . 1 . . 1 . . . . . . . . . . . . 1 . . . . . . . Targets Rammed 4 | . . . . . . . 1 . . . . . . 1 . . 1 . . . . . . . . . . . . 1 . . . . . . . Kicked . | . . . . . . . . . . . . . . . . . . . . . . . . . . . . . . . . . . . . . . Crushed . | . . . . . . . . . . . . . . . . . . . . . . . . . . . . . . . . . . . . . . Highest Temperature 495 | . 21 192 262 262 167 266 460 80 49 44 . 58 306 244 52 84 24 . . 135 107 90 . . 495 111 87 . 54 22 27 198 321 276 . 164 132 Average Temperature 65 | . 9 73 58 109 72 70 93 32 18 17 . 21 64 75 20 38 13 . . 69 37 43 . . 63 36 34 . 20 12 15 46 97 87 . 92 68 Received Heat Transfer 6059 | . 177 78 504 18 . 261 1656 102 36 72 . 99 . 321 705 54 36 . . 27 256 288 31 35 108 300 120 . . 27 90 . 178 62 374 36 8 Effects 6 | . . . . . . . 6 . . . . . . . . . . . . . . . . . . . . . . . . . . . . . . Shutdowns 1 | . . . . . . . 1 . . . . . . . . . . . . . . . . . . . . . . . . . . . . . . Energy Bleed 2 | . . . . . . . 2 . . . . . . . . . . . . . . . . . . . . . . . . . . . . . . Interference 3 | . . . . . . . 3 . . . . . . . . . . . . . . . . . . . . . . . . . . . . . . Siege Activations 104 | . . . . . . . . . . . . . . . . 5 2 . 2 5 6 5 3 4 7 5 4 . 6 8 1 2 9 5 18 4 3 Total Turns 2146 | . . . . . . . . . . . . . . . . 105 22 . 17 120 102 248 109 73 124 108 75 . 135 124 4 63 126 113 369 78 31 Longest Duration 115 | . . . . . . . . . . . . . . . . 48 13 . 13 57 61 115 71 28 36 62 32 . 62 36 4 56 35 45 39 43 23 Robots Corrupted 4 | . . . . . . . . . . . . . . . . . 2 . . . . . . . . 1 . . 1 . . . . . . . . Combat Hostiles 3 | . . . . . . . . . . . . . . . . . 2 . . . . . . . . 1 . . . . . . . . . . . Parts Fried 16 | . . . . . . . . . . . . . . . . . 7 . . . . . . . . . 3 . 3 . . . . 3 . . . Impact Corruptions 3 | . . . . . . . . . . . . . . . . . . . . . . . . . . . . . . . . . . 3 . . . Robots Melted 14 | . . . . . . . 1 . . . . . . . . . . . . 2 1 3 1 . . . . . . 1 . . 3 1 . 1 . Combat Hostiles 14 | . . . . . . . 1 . . . . . . . . . . . . 2 1 3 1 . . . . . . 1 . . 3 1 . 1 . Parts Melted 49 | . . . 5 . . 1 6 1 . . . . . 1 3 . 1 . . 2 2 4 1 . 2 2 1 . . 3 . . 6 3 2 2 1 Heat Transferred 28799 | . . 259 3256 407 . 1221 4329 629 629 296 . 259 . 350 2505 1221 370 . . 1500 400 1500 175 550 909 555 74 452 . 1332 37 627 1813 1479 666 740 259 Parts Sabotaged . | . . . . . . . . . . . . . . . . . . . . . . . . . . . . . . . . . . . . . . Parts Stolen . | . . . . . . . . . . . . . . . . . . . . . . . . . . . . . . . . . . . . . . Parts Stripped . | . . . . . . . . . . . . . . . . . . . . . . . . . . . . . . . . . . . . . . Power Chain Reactions 2 | . . . . . . . . . . . . . . 2 . . . . . . . . . . . . . . . . . . . . . . . Missiles Intercepted . | . . . . . . . . . . . . . . . . . . . . . . . . . . . . . . . . . . . . . . Alert | -11 -10 -10 -9 -9 -9 -8 -8 -7 -7 -7 -7 -6 -6 -6 -6 -6 -6 -5 -5 -5 -5 -5 -5 -4 -4 -4 -4 -4 -3 -3 -3 -3 -2 -2 -2 -1 -1 ------- Run | Scr Mat Min Mat Min Exi Min Mat Fac Low Low Dat Pro Fac Ext Cet Arc Hub Fac Was Fac Upp Upp War Pro Fac Upp Upp Zhi Pro Res Arm Lab Res Qua Sec Acc Com Peak Influence 983 | 10 205 78 611 231 . 165 421 253 . . . . 113 483 413 357 665 325 161 416 . . . . 234 . . . . 297 106 . 983 737 914 553 496 Initial 552 | . 6 . 21 231 . . 23 182 . . . . 9 55 264 165 2 325 113 . . . . . 68 . . . . 4 65 . . 552 351 520 148 Average 207 | 5 29 27 238 66 . 49 256 170 . . . . 33 262 294 218 82 325 104 115 . . . . 63 . . . . 96 83 . 439 535 453 368 205 Maximum Alert Level 4 | . 1 . 2 1 . . 2 1 . . . . . 2 2 1 2 1 . 2 . . . . 1 . . . . 1 . . 3 3 3 2 4 Low Security (%) 58 | 100 96 100 45 77 . 100 31 60 . . . . 100 42 5 59 95 . 100 76 . . . . 96 . . . . 90 100 . 35 . 19 23 56 Level 1 23 | . 3 . 33 22 . . 45 39 . . . . . 42 83 40 1 100 . 19 . . . . 3 . . . . 9 . . 10 11 33 13 38 Level 2 15 | . . . 21 . . . 23 . . . . . . 15 10 . 3 . . 4 . . . . . . . . . . . . 37 81 17 62 3 Level 3 3 | . . . . . . . . . . . . . . . . . . . . . . . . . . . . . . . . . 16 7 28 . . Level 4 . | . . . . . . . . . . . . . . . . . . . . . . . . . . . . . . . . . . . . . 2 Level 5 . | . . . . . . . . . . . . . . . . . . . . . . . . . . . . . . . . . . . . . . High Security . | . . . . . . . . . . . . . . . . . . . . . . . . . . . . . . . . . . . . . . Max Security . | . . . . . . . . . . . . . . . . . . . . . . . . . . . . . . . . . . . . . . Squads Dispatched 64 | . 2 1 3 . . . 2 3 . . . . 4 4 . . 3 . . 2 . . . . 3 . . . . 5 . . 2 10 12 5 3 Investigation 8 | . . 1 2 . . . . 1 . . . . . 1 . . . . . . . . . . . . . . . 1 . . . 1 . . 1 Extermination 21 | . . . . . . . . 1 . . . . 2 . . . 1 . . 2 . . . . 2 . . . . 2 . . . 2 6 3 . Reinforcement 19 | . 2 . 1 . . . 2 1 . . . . 2 2 . . . . . . . . . . 1 . . . . 2 . . . 3 . 1 2 Assault 7 | . . . . . . . . . . . . . . 1 . . 1 . . . . . . . . . . . . . . . . 1 3 1 . Garrison 1 | . . . . . . . . . . . . . . . . . 1 . . . . . . . . . . . . . . . . . . . . Intercept 8 | . . . . . . . . . . . . . . . . . . . . . . . . . . . . . . . . . 2 3 3 . . Searches Triggered . | . . . . . . . . . . . . . . . . . . . . . . . . . . . . . . . . . . . . . . Data Miner Redirects 5 | . . . . . . . . . . . . . . 1 . . . . . . . . . . . . . . . . . . . 2 . 1 1 Construction Impeded . | . . . . . . . . . . . . . . . . . . . . . . . . . . . . . . . . . . . . . . Haulers Reinforced . | . . . . . . . . . . . . . . . . . . . . . . . . . . . . . . . . . . . . . . Active Scanning Responses . | . . . . . . . . . . . . . . . . . . . . . . . . . . . . . . . . . . . . . . Cargo Convoy Interrupts . | . . . . . . . . . . . . . . . . . . . . . . . . . . . . . . . . . . . . . . Stealth | -11 -10 -10 -9 -9 -9 -8 -8 -7 -7 -7 -7 -6 -6 -6 -6 -6 -6 -5 -5 -5 -5 -5 -5 -4 -4 -4 -4 -4 -3 -3 -3 -3 -2 -2 -2 -1 -1 --------- Run | Scr Mat Min Mat Min Exi Min Mat Fac Low Low Dat Pro Fac Ext Cet Arc Hub Fac Was Fac Upp Upp War Pro Fac Upp Upp Zhi Pro Res Arm Lab Res Qua Sec Acc Com Distress Signals 41 | . 1 . 2 . . . 5 . . . . . . . 2 1 . . . . . 1 . . 1 . . . . 3 . . 11 . 4 1 9 Communications Jammed 68 | . . . . . . . . . . . . . . 11 . . 15 . . 12 . . . . 7 . . . . 5 . . . . 14 1 3 Distress Signals 51 | . . . . . . . . . . . . . . 11 . . 15 . . 2 . . . . 1 . . . . 4 . . . . 14 1 3 Times Spotted 590 | . 18 8 41 6 . 15 49 7 8 10 . 11 4 32 25 25 20 . . 21 6 18 25 10 16 13 5 . 11 19 1 1 28 20 66 10 41 Peak Tracking Total 76 | . 5 3 6 3 . 4 6 4 4 4 . 5 2 8 5 1 17 . . 5 5 6 14 5 5 3 1 . 2 4 1 1 6 5 11 3 76 Tactical Retreats 29 | . . . 2 . . . 2 1 3 1 . . . . . . 2 . . 3 . 6 . . . 1 . . . 1 . . 3 1 3 . . Traps | -11 -10 -10 -9 -9 -9 -8 -8 -7 -7 -7 -7 -6 -6 -6 -6 -6 -6 -5 -5 -5 -5 -5 -5 -4 -4 -4 -4 -4 -3 -3 -3 -3 -2 -2 -2 -1 -1 ------- Run | Scr Mat Min Mat Min Exi Min Mat Fac Low Low Dat Pro Fac Ext Cet Arc Hub Fac Was Fac Upp Upp War Pro Fac Upp Upp Zhi Pro Res Arm Lab Res Qua Sec Acc Com Traps Triggered 16 | . . . 4 . . . . 1 . . . . . 3 . . 2 1 . 1 . . . . 1 . . . . 2 1 . . . . . . Indirectly . | . . . . . . . . . . . . . . . . . . . . . . . . . . . . . . . . . . . . . . Trap Hack Attempts . | . . . . . . . . . . . . . . . . . . . . . . . . . . . . . . . . . . . . . . Triggered . | . . . . . . . . . . . . . . . . . . . . . . . . . . . . . . . . . . . . . . Disarmed . | . . . . . . . . . . . . . . . . . . . . . . . . . . . . . . . . . . . . . . Reprogrammed . | . . . . . . . . . . . . . . . . . . . . . . . . . . . . . . . . . . . . . . Reused . | . . . . . . . . . . . . . . . . . . . . . . . . . . . . . . . . . . . . . . Traps Extracted . | . . . . . . . . . . . . . . . . . . . . . . . . . . . . . . . . . . . . . . Installed . | . . . . . . . . . . . . . . . . . . . . . . . . . . . . . . . . . . . . . . Triggered 16 | . . . . . . . . . . 1 . . . . . . . . . . . . 13 . . . 1 . 1 . . . . . . . . Machines | -11 -10 -10 -9 -9 -9 -8 -8 -7 -7 -7 -7 -6 -6 -6 -6 -6 -6 -5 -5 -5 -5 -5 -5 -4 -4 -4 -4 -4 -3 -3 -3 -3 -2 -2 -2 -1 -1 ---------- Run | Scr Mat Min Mat Min Exi Min Mat Fac Low Low Dat Pro Fac Ext Cet Arc Hub Fac Was Fac Upp Upp War Pro Fac Upp Upp Zhi Pro Res Arm Lab Res Qua Sec Acc Com Machines Disabled 65 | . . . 3 1 . 1 5 . . . . . . 2 1 4 13 . . 2 . . . . 1 1 . . . 1 1 3 4 7 9 1 5 Max in Single Turn 8 | . . . 1 1 . 1 1 . . . . . . . 1 1 8 . . 1 . . . . 1 1 . . . 1 1 1 1 1 1 1 3 Garrison Access 7 | . . . . . . . 1 . . . . . . . . . 1 . . 1 . . . . . . . . . 1 . . 2 . . 1 . Network Hub 2 | . . . . . . . . . . . . . . . . . 2 . . . . . . . . . . . . . . . . . . . . Energy Cycler 1 | . . . . . . . . . . . . . . 1 . . . . . . . . . . . . . . . . . . . . . . . Machines Sabotaged . | . . . . . . . . . . . . . . . . . . . . . . . . . . . . . . . . . . . . . . Garrisons Compromised . | . . . . . . . . . . . . . . . . . . . . . . . . . . . . . . . . . . . . . . Overloaded Fab Kills . | . . . . . . . . . . . . . . . . . . . . . . . . . . . . . . . . . . . . . . Hacking | -11 -10 -10 -9 -9 -9 -8 -8 -7 -7 -7 -7 -6 -6 -6 -6 -6 -6 -5 -5 -5 -5 -5 -5 -4 -4 -4 -4 -4 -3 -3 -3 -3 -2 -2 -2 -1 -1 --------- Run | Scr Mat Min Mat Min Exi Min Mat Fac Low Low Dat Pro Fac Ext Cet Arc Hub Fac Was Fac Upp Upp War Pro Fac Upp Upp Zhi Pro Res Arm Lab Res Qua Sec Acc Com Machines Accessed 131 | . 10 1 14 . 1 . 16 3 1 . 3 . 4 3 . . 9 . . 13 1 . 3 . 7 . 1 4 . 10 1 1 . 4 11 7 3 Terminals 81 | . 8 . 10 . . . 10 3 . . . . 3 2 . . 9 . . 6 . . . . 4 . . . . 5 . . . 3 11 5 2 Fabricators 4 | . . . . . . . . . . . . . 1 . . . . . . 1 . . . . . . . . . 1 1 . . . . . . Repair Stations 9 | . 1 . 1 . . . 2 . . . . . . 1 . . . . . 2 . . . . 1 . . . . 1 . . . . . . . Recycling Units 11 | . 1 . 2 . . . 2 . . . . . . . . . . . . 3 . . . . 1 . . . . . . . . . . 1 1 Scanalyzers 5 | . . . 1 . . . 1 . . . . . . . . . . . . . . . . . 1 . . . . 1 . . . 1 . . . Garrison Access 5 | . . . . . . . 1 . . . . . . . . . . . . 1 . . . . . . . . . 2 . . . . . 1 . Total Hacks 546 | . 32 1 50 . 4 . 64 10 1 . 24 . 16 7 . . 27 . . 80 1 . 4 . 56 . 1 16 . 47 1 2 . 17 42 33 10 Successful 338 | . 16 1 30 . 4 . 51 5 1 . 24 . 10 5 . . 21 . . 44 1 . 4 . 38 . 1 16 . 14 . 2 . 7 20 19 4 Failed 204 | . 15 . 19 . . . 12 5 . . . . 6 2 . . 6 . . 35 . . . . 18 . . . . 33 1 . . 10 22 14 6 Catastrophic 24 | . . . . . . . 1 2 . . . . . 1 . . 2 . . 1 . . . . 1 . . . . 8 1 . . 2 5 . . Database Lockouts 4 | . 1 . 1 . . . 1 . . . . . . . . . . . . 1 . . . . . . . . . . . . . . . . . Manual 178 | . 15 . 21 . . . 22 4 . . . . 5 . . . 8 . . 40 . . 1 . 18 . . . . 7 . . . 7 14 10 6 Terminals 334 | . 28 . 39 . . . 42 10 . . . . 12 5 . . 27 . . 33 . . . . 22 . . . . 30 . . . 14 42 28 2 Fabricators 12 | . . . . . . . . . . . . . 4 . . . . . . 3 . . . . . . . . . 4 1 . . . . . . Repair Stations 47 | . 2 . 2 . . . 9 . . . . . . 2 . . . . . 19 . . . . 8 . . . . 5 . . . . . . . Recycling Units 54 | . 2 . 6 . . . 5 . . . . . . . . . . . . 24 . . . . 7 . . . . . . . . . . 2 8 Scanalyzers 37 | . . . 3 . . . 7 . . . . . . . . . . . . . . . . . 19 . . . . 5 . . . 3 . . . Garrison Access 8 | . . . . . . . 1 . . . . . . . . . . . . 1 . . . . . . . . . 3 . . . . . 3 . Terminal Hacks 190 | . 12 1 15 . 4 . 21 3 1 . 24 . 5 3 . . 18 . . 10 1 . 4 . 7 . 1 16 . 6 . 2 . 2 17 15 2 Record 21 | . . . . . 4 . . . . . 6 . . . . . . . . . 1 . 3 . . . . 4 . 1 . 1 . . . 1 . Part Schematic 17 | . . . . . . . . . . . 10 . . . . . 1 . . . . . . . . . . 4 . 1 . . . . 1 . . Robot Schematic 5 | . . . . . . . . . . . 5 . . . . . . . . . . . . . . . . . . . . . . . . . . Robot Analysis 17 | . 2 . 5 . . . 1 . . . . . . . . . . . . 5 . . . . . . . 4 . . . . . . . . . Prototype ID Bank 26 | . 4 . 4 . . . 5 . . . 3 . . . . . 2 . . 1 . . . . . . . 4 . 1 . . . . 1 1 . Open Door 8 | . . 1 . . . . . . 1 . . . 1 . . . . . . . . . 1 . . . 1 . . . . . . . 3 . . Level Access Points 2 | . . . . . . . . . . . . . 1 . . . 1 . . . . . . . . . . . . . . . . . . . . Branch Access Points 7 | . . . 1 . . . 1 1 . . . . . . . . . . . 1 . . . . 1 . . . . 1 . . . . . 1 . Emergency Access Points 6 | . . . . . . . 2 . . . . . . . . . 3 . . . . . . . . . . . . . . . . . . 1 . Machine Index 2 | . . . . . . . . . . . . . . . . . 1 . . . . . . . . . . . . . . . . . 1 . . Terminal Index 3 | . . . . . . . 1 . . . . . . . . . 1 . . 1 . . . . . . . . . . . . . . . . . Scanalyzer Index 2 | . . . . . . . 1 . . . . . . . . . . . . . . . . . 1 . . . . . . . . . . . . Garrison Index 1 | . . . . . . . . . . . . . . . . . . . . . . . . . . . . . . . . . . . . 1 . Alert Level 7 | . . . . . . . . . . . . . . . . . . . . . . . . . . . . . . . . . . . 4 3 . Unreport Threat 10 | . . . . . . . . 1 . . . . . . . . . . . . . . . . 1 . . . . 1 . . . 1 3 3 . Locate Traps 17 | . 2 . . . . . 3 1 . . . . 2 2 . . 2 . . . . . . . 1 . . . . . . . . 1 1 2 . Security Status 1 | . . . . . . . . . . . . . . . . . 1 . . . . . . . . . . . . . . . . . . . . Patrol Status 1 | . . . . . . . . . . . . . . . . . . . . 1 . . . . . . . . . . . . . . . . . Transport Status 1 | . . . . . . . 1 . . . . . . . . . . . . . . . . . . . . . . . . . . . . . . Recall Investigation 2 | . . . 2 . . . . . . . . . . . . . . . . . . . . . . . . . . . . . . . . . . Recall Extermination 1 | . . . . . . . . . . . . . . . . . . . . . . . . . . . . . . . . . . . 1 . . Recall Assault 1 | . . . . . . . . . . . . . . . . . . . . . . . . . . . . . . . . . . . . 1 . Hauler Manifests 4 | . 1 . . . . . 2 . . . . . . . . . . . . . . . . . 1 . . . . . . . . . . . . Registered Components 2 | . . . . . . . 1 . . . . . 1 . . . . . . . . . . . . . . . . . . . . . . . . Zone Layout 23 | . 3 . 3 . . . 3 . . . . . . 1 . . 6 . . 1 . . . . 2 . . . . 1 . . . . 2 1 . Disengage Seal 2 | . . . . . . . . . . . . . . . . . . . . . . . . . . . . . . . . . . . . . 2 Gate Test 138-A 1 | . . . . . . . . . . . . . . . . . . . . . . . . . . . . . . . . 1 . . . . . Fabricator Hacks 4 | . . . . . . . . . . . . . 1 . . . . . . 1 . . . . . . . . . 2 . . . . . . . Network Status 3 | . . . . . . . . . . . . . 1 . . . . . . 1 . . . . . . . . . 1 . . . . . . . Load Schematic 1 | . . . . . . . . . . . . . . . . . . . . . . . . . . . . . . 1 . . . . . . . Repair Station Hacks 36 | . . . 2 . . . 9 . . . . . . 2 . . . . . 13 . . . . 8 . . . . 2 . . . . . . . Scan Component 19 | . . . 1 . . . 5 . . . . . . 1 . . . . . 7 . . . . 4 . . . . 1 . . . . . . . Repair 17 | . . . 1 . . . 4 . . . . . . 1 . . . . . 6 . . . . 4 . . . . 1 . . . . . . . Recycling Unit Hacks 11 | . 1 . 2 . . . 2 . . . . . . . . . . . . 5 . . . . 1 . . . . . . . . . . . . Retrieve Matter 2 | . . . . . . . . . . . . . . . . . . . . 2 . . . . . . . . . . . . . . . . . Retrieve Components 9 | . 1 . 2 . . . 2 . . . . . . . . . . . . 3 . . . . 1 . . . . . . . . . . . . Scanalyzer 28 | . . . 3 . . . 7 . . . . . . . . . . . . . . . . . 15 . . . . 1 . . . 2 . . . Insert Component 13 | . . . 2 . . . 4 . . . . . . . . . . . . . . . . . 4 . . . . 1 . . . 2 . . . Analyze 15 | . . . 1 . . . 3 . . . . . . . . . . . . . . . . . 11 . . . . . . . . . . . . Garrison Access Hacks 4 | . . . . . . . 1 . . . . . . . . . . . . 1 . . . . . . . . . 1 . . . . . 1 . Seal Access 4 | . . . . . . . 1 . . . . . . . . . . . . 1 . . . . . . . . . 1 . . . . . 1 . Unauthorized Hacks 65 | . 3 . 8 . . . 11 2 . . . . 4 . . . 3 . . 14 . . . . 7 . . . . 2 . . . 3 3 3 2 Terminals 42 | . 2 . 5 . . . 8 2 . . . . 4 . . . 3 . . 4 . . . . 4 . . . . 1 . . . 3 3 3 . Track 3 | . . . . . . . 2 . . . . . 1 . . . . . . . . . . . . . . . . . . . . . . . . Assimilate 3 | . . . 1 . . . . . . . . . . . . . . . . 1 . . . . . . . . . . . . . 1 . . . Botnet 23 | . 2 . 2 . . . 3 1 . . . . 1 . . . 2 . . 3 . . . . 2 . . . . 1 . . . 2 2 2 . Detonate 1 | . . . 1 . . . . . . . . . . . . . . . . . . . . . . . . . . . . . . . . . . Disrupt 4 | . . . . . . . 2 . . . . . 1 . . . . . . . . . . . 1 . . . . . . . . . . . . Operators 8 | . . . 1 . . . 1 1 . . . . 1 . . . 1 . . . . . . . 1 . . . . . . . . . 1 1 . Fabricators 2 | . . . . . . . . . . . . . . . . . . . . 1 . . . . . . . . . 1 . . . . . . . Prioritize 1 | . . . . . . . . . . . . . . . . . . . . . . . . . . . . . . 1 . . . . . . . Haulers 1 | . . . . . . . . . . . . . . . . . . . . 1 . . . . . . . . . . . . . . . . . Repair Stations . | . . . . . . . . . . . . . . . . . . . . . . . . . . . . . . . . . . . . . . Recycling Units 21 | . 1 . 3 . . . 3 . . . . . . . . . . . . 9 . . . . 3 . . . . . . . . . . . 2 Monitor 2 | . . . . . . . . . . . . . . . . . . . . 2 . . . . . . . . . . . . . . . . . Reject 5 | . . . . . . . 1 . . . . . . . . . . . . 3 . . . . 1 . . . . . . . . . . . . Recyclers 4 | . . . 1 . . . . . . . . . . . . . . . . 1 . . . . 1 . . . . . . . . . . . 1 Mask 10 | . 1 . 2 . . . 2 . . . . . . . . . . . . 3 . . . . 1 . . . . . . . . . . . 1 Scanalyzers . | . . . . . . . . . . . . . . . . . . . . . . . . . . . . . . . . . . . . . . Garrison Access . | . . . . . . . . . . . . . . . . . . . . . . . . . . . . . . . . . . . . . . Data Cores Recovered . | . . . . . . . . . . . . . . . . . . . . . . . . . . . . . . . . . . . . . . Used . | . . . . . . . . . . . . . . . . . . . . . . . . . . . . . . . . . . . . . . Hacking Detections 98 | . 9 . 11 . . . 13 3 . . . . 4 3 . . 9 . . 11 . . . . 6 . . . . 9 1 . . 4 8 6 1 Full Trace Events 5 | . 1 . . . . . . 1 . . . . . 1 . . . . . . . . . . . . . . . 1 . . . 1 . . . Feedback Events 1 | . . . . . . . . . . . . . . 1 . . . . . . . . . . . . . . . . . . . . . . . Corruption 1 | . . . . . . . . . . . . . . 1 . . . . . . . . . . . . . . . . . . . . . . . Feedback Blocked . | . . . . . . . . . . . . . . . . . . . . . . . . . . . . . . . . . . . . . . Robot Schematics Acquired 8 | . . . . . . . . . . . 5 . . . . . . . . . . . . . . . . . . . . . . 3 . . . Robots Built . | . . . . . . . . . . . . . . . . . . . . . . . . . . . . . . . . . . . . . . Authchips . | . . . . . . . . . . . . . . . . . . . . . . . . . . . . . . . . . . . . . . Time . | . . . . . . . . . . . . . . . . . . . . . . . . . . . . . . . . . . . . . . Total Robot Build Rating . | . . . . . . . . . . . . . . . . . . . . . . . . . . . . . . . . . . . . . . Part Schematics Acquired 26 | . . . 1 . . . 3 . . . 10 . . . . . 1 . . . . . . . 4 . . 4 . 1 . . . 1 1 . . Parts Built . | . . . . . . . . . . . . . . . . . . . . . . . . . . . . . . . . . . . . . . Authchips . | . . . . . . . . . . . . . . . . . . . . . . . . . . . . . . . . . . . . . . Time . | . . . . . . . . . . . . . . . . . . . . . . . . . . . . . . . . . . . . . . Total Part Build Rating . | . . . . . . . . . . . . . . . . . . . . . . . . . . . . . . . . . . . . . . Parts Repaired 17 | . . . 1 . . . 4 . . . . . . 1 . . . . . 6 . . . . 4 . . . . 1 . . . . . . . Time 995 | . . . 38 . . . 155 . . . . . . 25 . . . . . 291 . . . . 432 . . . . 54 . . . . . . . Parts Recycled . | . . . . . . . . . . . . . . . . . . . . . . . . . . . . . . . . . . . . . . Recycled Matter . | . . . . . . . . . . . . . . . . . . . . . . . . . . . . . . . . . . . . . . Retrieved Matter . | . . . . . . . . . . . . . . . . . . . . . . . . . . . . . . . . . . . . . . Retrieved Components 57 | . 9 . 17 . . . 20 . . . . . . . . . . . . 11 . . . . . . . . . . . . . . . . . Parts Scanalyzed 8 | . . . 1 . . . 3 . . . . . . . . . . . . . . . . . 4 . . . . . . . . . . . . Part Schematics Acquired 8 | . . . 1 . . . 3 . . . . . . . . . . . . . . . . . 4 . . . . . . . . . . . . Parts Damaged 1 | . . . . . . . 1 . . . . . . . . . . . . . . . . . . . . . . . . . . . . . . Bothacking | -11 -10 -10 -9 -9 -9 -8 -8 -7 -7 -7 -7 -6 -6 -6 -6 -6 -6 -5 -5 -5 -5 -5 -5 -4 -4 -4 -4 -4 -3 -3 -3 -3 -2 -2 -2 -1 -1 ------------ Run | Scr Mat Min Mat Min Exi Min Mat Fac Low Low Dat Pro Fac Ext Cet Arc Hub Fac Was Fac Upp Upp War Pro Fac Upp Upp Zhi Pro Res Arm Lab Res Qua Sec Acc Com Used RIF Installer . | . . . . . . . . . . . . . . . . . . . . . . . . . . . . . . . . . . . . . . Robots Hacked . | . . . . . . . . . . . . . . . . . . . . . . . . . . . . . . . . . . . . . . Non-combat . | . . . . . . . . . . . . . . . . . . . . . . . . . . . . . . . . . . . . . . Combat . | . . . . . . . . . . . . . . . . . . . . . . . . . . . . . . . . . . . . . . Robot Hacks Applied . | . . . . . . . . . . . . . . . . . . . . . . . . . . . . . . . . . . . . . . Relay Couplers Released 10 | . . . . . . . 2 . . . . . . . . . 2 . . . . . . . . . . . . . . . 6 . . . . Machine Destruction 7 | . . . . . . . 2 . . . . . . . . . 2 . . . . . . . . . . . . . . . 3 . . . . Programmers 3 | . . . . . . . . . . . . . . . . . . . . . . . . . . . . . . . . . 3 . . . . Fabnet Peak Effective % . | . . . . . . . . . . . . . . . . . . . . . . . . . . . . . . . . . . . . . . Robots Rewired 23 | . . . . . . . . . . . . . . 13 . . . . . . . . 4 2 . . 4 . . . . . . . . . . Allies Hacked . | . . . . . . . . . . . . . . . . . . . . . . . . . . . . . . . . . . . . . . Hacks Repelled 1 | . . . . . . . . . . . . . . . . . . . . . . . . . 1 . . . . . . . . . . . . Allies | -11 -10 -10 -9 -9 -9 -8 -8 -7 -7 -7 -7 -6 -6 -6 -6 -6 -6 -5 -5 -5 -5 -5 -5 -4 -4 -4 -4 -4 -3 -3 -3 -3 -2 -2 -2 -1 -1 -------- Run | Scr Mat Min Mat Min Exi Min Mat Fac Low Low Dat Pro Fac Ext Cet Arc Hub Fac Was Fac Upp Upp War Pro Fac Upp Upp Zhi Pro Res Arm Lab Res Qua Sec Acc Com Total Allies 38 | . . 3 1 . . . . . . . . 1 . 22 . . . . . 1 . . 4 2 . . 4 . . . . . . . . . . Largest Group 8 | . . 3 2 . . . . . . . . 1 . 8 . . . . . 1 . . 4 2 2 . 4 2 2 . . . . . . . . Highest-Rated Group 256 | . . 40 32 . . . . . . . . 96 . 256 . . . . . 26 . . 199 58 58 . 143 72 72 . . . . . . . . Highest-Rated Ally 96 | . . 16 16 . . . . . . . . 96 . 39 . . . . . 26 . . 68 29 29 . 38 38 38 . . . . . . . . Total Orders 23 | . . . . . . . . . . . . . . 3 . . . . . 4 . . 7 . . . 4 . . . . . . . . . 5 STAY 10 | . . . . . . . . . . . . . . 2 . . . . . 2 . . 5 . . . 1 . . . . . . . . . . ROAM 1 | . . . . . . . . . . . . . . . . . . . . . . . . . . . 1 . . . . . . . . . . FOLLOW 7 | . . . . . . . . . . . . . . 1 . . . . . 2 . . 2 . . . 2 . . . . . . . . . . EXPLORE 4 | . . . . . . . . . . . . . . . . . . . . . . . . . . . . . . . . . . . . . 4 RETURN 1 | . . . . . . . . . . . . . . . . . . . . . . . . . . . . . . . . . . . . . 1 Ally Attacks 176 | . . 19 10 . . . . . . . . 21 . 90 . . . . . . . . 20 . 1 . 12 . 3 . . . . . . . . Total Damage 4974 | . . 170 122 . . . . . . . . 582 . 2514 . . . . . . . . 1028 . 58 . 462 . 38 . . . . . . . . Kills 37 | . . 4 1 . . . . . . . . 4 . 17 . . . . . . . . 6 . 1 . 3 . 1 . . . . . . . . Allies Corrupted . | . . . . . . . . . . . . . . . . . . . . . . . . . . . . . . . . . . . . . . Allies Melted 2 | . . . . . . . . . . . . . . . . . . . . . . . 1 . . . . . . . . . 1 . . . . Intel | -11 -10 -10 -9 -9 -9 -8 -8 -7 -7 -7 -7 -6 -6 -6 -6 -6 -6 -5 -5 -5 -5 -5 -5 -4 -4 -4 -4 -4 -3 -3 -3 -3 -2 -2 -2 -1 -1 ------- Run | Scr Mat Min Mat Min Exi Min Mat Fac Low Low Dat Pro Fac Ext Cet Arc Hub Fac Was Fac Upp Upp War Pro Fac Upp Upp Zhi Pro Res Arm Lab Res Qua Sec Acc Com Robot Analysis Total 17 | . 2 . 5 . . . 1 . . . . . . . . . . . . 5 . . . . . . . 4 . . . . . . . . . Derelict Logs Recovered 19 | . . 1 . 2 . . . . 1 2 . 3 . . . . . . . . 2 3 . 2 . 2 1 . . . . . . . . . . Drone Launches 4 | . . . . . . . . . . . . . . . . . . . . . . . . . . . . . . . . . . . . . 4 Drone Recoveries 4 | . . . . . . . . . . . . . . . . . . . . . . . . . . . . . . . . . . . . . 4 Exploration | -11 -10 -10 -9 -9 -9 -8 -8 -7 -7 -7 -7 -6 -6 -6 -6 -6 -6 -5 -5 -5 -5 -5 -5 -4 -4 -4 -4 -4 -3 -3 -3 -3 -2 -2 -2 -1 -1 ------------- Run | Scr Mat Min Mat Min Exi Min Mat Fac Low Low Dat Pro Fac Ext Cet Arc Hub Fac Was Fac Upp Upp War Pro Fac Upp Upp Zhi Pro Res Arm Lab Res Qua Sec Acc Com Turns Passed 58450 | 69 2490 1520 3412 1770 355 1183 4853 541 1993 2527 185 4054 1122 1058 776 829 1305 137 498 1588 2670 2624 1180 1748 1226 3569 1969 389 2011 1158 164 580 1560 1230 2544 1069 494 Spaces Moved 22100 | 36 760 464 1136 503 180 482 1326 261 866 982 78 939 414 414 171 97 484 84 266 761 1101 958 599 1012 334 1547 1109 193 924 498 92 226 750 540 850 489 174 Core 15 | 15 . . . . . . . . . . . . . . . . . . . . . . . . . . . . . . . . . . . . . Treads 16696 | 21 760 464 355 1 . 1 1106 . . . . 798 . . 143 97 484 84 266 761 1101 958 599 1012 334 1547 1109 193 924 498 92 226 750 540 809 489 174 Legs 141 | . . . . . . . . . . . . 141 . . . . . . . . . . . . . . . . . . . . . . . . . Wheels 5207 | . . . 781 502 180 481 220 261 866 982 78 . 414 414 28 . . . . . . . . . . . . . . . . . . . . . . Hover . | . . . . . . . . . . . . . . . . . . . . . . . . . . . . . . . . . . . . . . Flight . | . . . . . . . . . . . . . . . . . . . . . . . . . . . . . . . . . . . . . . Fastest Speed 50 | 50 160 312 195 210 195 195 150 150 165 225 240 260 165 165 240 240 240 160 160 160 160 160 160 160 160 160 160 160 160 160 160 160 156 150 155 145 225 Average Speed 211 | 115 294 313 254 210 195 210 300 160 220 239 240 419 165 166 244 249 240 160 160 160 225 239 165 160 160 160 160 160 160 160 160 164 160 155 155 155 225 Slowest Speed 650 | 160 320 320 560 480 210 480 465 165 240 240 240 650 165 180 400 320 320 160 160 240 240 240 240 160 160 160 160 160 160 160 160 166 166 233 155 232 225 Overloaded Moves . | . . . . . . . . . . . . . . . . . . . . . . . . . . . . . . . . . . . . . . Propulsion Burnouts . | . . . . . . . . . . . . . . . . . . . . . . . . . . . . . . . . . . . . . . Robots Hopped . | . . . . . . . . . . . . . . . . . . . . . . . . . . . . . . . . . . . . . . Cave-ins Triggered . | . . . . . . . . . . . . . . . . . . . . . . . . . . . . . . . . . . . . . . Teleports 2 | . . . . . . . . . . . . . . . . . . . . . . . . . . . . . . . 1 . . . 1 . . Spacefolds 2 | . . . . . . . . . . . . . . . . . . . . . . . . . . . . . . . . . . . 2 . . Microwarps 4 | . . . . . . . . . . . . . . . . . . . . . . . . . . . . . . . . . . . 4 . . Exploration Rate (%) 64 | 3 98 99 94 98 58 96 90 11 94 95 68 97 13 66 56 77 58 5 96 24 99 95 85 97 12 97 99 60 97 18 17 99 31 61 62 16 21 Regions Visited 37 Branch Regions 25 Pre-discovered Areas 8 | . . . . 2 1 . . . . . 1 . . . . . . . . . . . . 1 . . . 3 . . . . . . . . . Known Exits Taken 30 | . . . 1 . 1 . 1 1 1 1 1 1 1 1 1 1 1 . . 1 1 1 1 1 1 1 1 1 1 1 1 1 1 1 1 1 . Unknown Exits Taken 5 | 1 1 1 . 1 . 1 . . . . . . . . . . . . . . . . . . . . . . . . . . . . . . . Scrap Searched 37 | . . 2 . 3 . 1 . . 3 4 . 5 . . . . . . . . 3 4 . 3 . 5 3 . 1 . . . . . . . . Spaces Dug 171 | . 3 . 8 . . . . . . . . . 13 13 . . 5 . . 3 1 . 8 . 14 3 2 . 3 12 2 2 32 26 5 15 1 Terrain Destroyed 1678 | . 3 . 20 6 1 . . . 18 52 . 32 18 36 28 12 320 . 38 24 22 23 8 52 22 16 12 . 78 18 3 3 174 55 8 30 546 Melee 22 | . 3 . 1 . . . . . . . . . . . . . . . . . . . . . . . . . . . . 2 . 10 4 2 . Projectile 871 | . . . 19 6 1 . . . . . . . 18 16 9 11 11 . . 24 10 23 8 7 22 16 12 . 10 18 3 1 24 24 4 28 546 AOE 784 | . . . . . . . . . 18 52 . 32 . 20 19 . 309 . 38 . 12 . . 45 . . . . 68 . . . 150 21 . . . Terrain Rammed . | . . . . . . . . . . . . . . . . . . . . . . . . . . . . . . . . . . . . . . Walls Destroyed . | . . . . . . . . . . . . . . . . . . . . . . . . . . . . . . . . . . . . . . Machines Disabled . | . . . . . . . . . . . . . . . . . . . . . . . . . . . . . . . . . . . . . . Actions | -11 -10 -10 -9 -9 -9 -8 -8 -7 -7 -7 -7 -6 -6 -6 -6 -6 -6 -5 -5 -5 -5 -5 -5 -4 -4 -4 -4 -4 -3 -3 -3 -3 -2 -2 -2 -1 -1 --------- Run | Scr Mat Min Mat Min Exi Min Mat Fac Low Low Dat Pro Fac Ext Cet Arc Hub Fac Was Fac Upp Upp War Pro Fac Upp Upp Zhi Pro Res Arm Lab Res Qua Sec Acc Com Total 31523 | 55 906 510 1444 1177 184 568 1890 355 912 1121 77 1020 806 715 361 586 586 88 330 1044 1255 1213 766 1094 948 2561 1244 242 1405 775 102 374 963 873 2017 723 233 Wait 6144 | . 30 18 121 650 . 26 276 64 4 110 . 18 347 98 5 420 67 1 21 195 119 198 113 37 530 938 58 5 421 164 3 52 48 124 710 139 14 Move 22031 | 35 759 463 1135 502 179 481 1325 260 865 981 77 938 413 414 170 96 484 84 265 760 1100 957 598 1011 333 1546 1108 192 923 497 91 225 749 539 814 488 174 Hop . | . . . . . . . . . . . . . . . . . . . . . . . . . . . . . . . . . . . . . . Pick Up 316 | 9 34 5 21 2 . 5 28 4 6 1 . 6 2 9 26 4 1 1 8 9 3 7 4 1 12 6 3 5 2 10 . 8 15 22 26 5 6 Fast Attach 165 | 2 2 2 3 1 . 1 15 . . . . 10 . 5 13 . . . 6 5 2 . 6 . 4 . . 7 . 2 . 12 11 7 32 12 5 Attach 157 | 5 . . 6 2 2 2 18 2 1 1 . 5 2 1 15 . . 2 3 4 2 3 . 1 6 1 1 2 3 4 . 5 7 17 27 3 4 Detach 22 | . . . . . 1 . 4 . . . . 1 . 1 1 . . . 1 2 . . . . . . . . 1 . . 2 . 2 6 . . Swap 447 | . 7 3 15 . 1 4 23 4 3 7 . 5 12 12 18 10 9 . 6 20 11 9 4 9 14 20 13 3 22 22 3 11 28 24 75 18 2 Drop 360 | . 13 7 23 1 1 3 28 3 4 1 . 13 1 12 22 4 1 . 15 8 2 4 9 . 6 4 4 11 2 9 . 17 23 31 51 15 12 Fire 1653 | 4 54 12 119 19 . 46 172 18 29 20 . 24 29 41 91 52 22 . 5 41 16 35 17 23 43 46 31 16 31 66 5 32 82 90 267 40 15 Melee 48 | . 7 . 1 . . . . . . . . . . . . . . . . . . . . . . . . . . . . 10 . 17 9 3 1 Ram . | . . . . . . . . . . . . . . . . . . . . . . . . . . . . . . . . . . . . . . Kick . | . . . . . . . . . . . . . . . . . . . . . . . . . . . . . . . . . . . . . . Crush 2 | . . . . . . . 1 . . . . . . . . . . . . . . . . . . . . . . 1 . . . . . . . Escape Stasis 26 | . . . . . . . . . . . . . . 24 . . 2 . . . . . . . . . . . . . . . . . . . . Rewire 152 | . . . . . . . . . . . . . . 98 . . . . . . . . 15 12 . . 26 1 . . . . . . . . . Trap . | . . . . . . . . . . . . . . . . . . . . . . . . . . . . . . . . . . . . . . Miscellaneous . | . . . . . . . . . . . . . . . . . . . . . . . . . . . . . . . . . . . . . . Route ------- -11/Scrapyard -10/Materials (discovered 4 exits: *Mat x3 / *Min) -10/Mines (discovered 2 exits: *Mat x2) -9/Materials (discovered 4 exits: *Mat x2 / *Min / *Sto) -9/Mines (discovered 3 exits: *Mat x2 / *Exi) -9/Exiles -8/Mines (discovered 2 exits: *Mat x2) -8/Materials (discovered 3 exits: *Fac x3) -7/Factory (discovered 3 exits: *Fac / *Low x2) -7/Lower Caves -7/Lower Caves (discovered 2 exits: *Fac / *Dat) -7/Data Miner -6/Proximity Caves -6/Factory (discovered 5 exits: Fac x4 / *Ext) -6/Extension (discovered 2 exits: *Fac / *Cet) -6/Cetus (discovered 2 exits: *Fac / *Arc) -6/Archives (discovered 2 exits: *Hub x2) -6/Hub_04(d) (discovered 4 exits: *Fac x4) -5/Factory -5/Waste -5/Factory (discovered 3 exits: *Fac / *Upp x2) -5/Upper Caves -5/Upper Caves (discovered 2 exits: *Fac / *War) -5/Warlord -4/Proximity Caves -4/Factory (discovered 3 exits: *Res / *Upp x2) -4/Upper Caves -4/Upper Caves (discovered 2 exits: *Res / *Zhi) -4/Zhirov -3/Proximity Caves -3/Research (discovered 5 exits: *Res x2 / *Arm / *Tes x2) -3/Armory -3/Lab -2/Research (discovered 3 exits: *Acc x2 / *Qua) -2/Quarantine (discovered 2 exits: *Acc / *Sec) -2/Section 7 -1/Access -1/Command To Fleet Rendezvous History --------- Turn | Location | Event 14 | -11/Scrapyard | Discovered new exit (range 15) 70 | -11/Scrapyard | Entered Materials 300 | -10/Materials | Build established: Mutant 694 | -10/Materials | Discovered new exit (range 12) 769 | -10/Materials | Discovered new exit (range 4) 939 | -10/Materials | Discovered new exit (range 9) 1394 | -10/Materials | Central database locked down 1511 | -10/Materials | Discovered new exit (range 14) 2560 | -10/Materials | Entered Mines 2588 | -10/Mines | Received a Rocket Launcher from a helpful Derelict 2626 | -10/Mines | Discovered new exit (range 10) 2745 | -10/Mines | Met a Derelict shopkeep closing up shop 3178 | -10/Mines | Discovered new exit (range 15) 3525 | -10/Mines | Assisted by bots powering up and referring to "LRC-V3" 4080 | -10/Mines | Entered Materials 4080 | -9/Materials | Accompanied by 2 allies 4080 | -9/Materials | Evolved 2 slots: Utility x2 4081 | -9/Materials | Identified exit to Mines 4452 | -9/Materials | Discovered new exit (range 10) 5230 | -9/Materials | Discovered new exit (range 16) 5360 | -9/Materials | Identified exit to Storage 5536 | -9/Materials | Lost 3 parts (1n1u1w) 5684 | -9/Materials | Discovered new exit (range 16) 5789 | -9/Materials | Build established: Scavenger-Mutant 6842 | -9/Materials | Repaired Imp. Utility Shielding 6972 | -9/Materials | Central database locked down 7492 | -9/Materials | Entered Mines 7508 | -9/Mines | Assembled infested the area 8273 | -9/Mines | Deemed a non-threat by the Exiles lab entrance 8273 | -9/Mines | Discovered new exit (range 5) 8452 | -9/Mines | Discovered new exit (range 10) 8514 | -9/Mines | Core integrity fell below 50% 8605 | -9/Mines | Found a damaged Exp. Sensor Array with a note attached 8609 | -9/Mines | Found Prototype Device 8710 | -9/Mines | A weapon hastily lodged in a ceiling crevice suddenly fell to the ground 8944 | -9/Mines | Found a hidden stash of uninstalled traps 8980 | -9/Mines | Learned location of Storage (-9) 8985 | -9/Mines | Discovered new exit (range 5) 9134 | -9/Mines | Learned location of 2 exits from Materials 9262 | -9/Mines | Entered Exiles 9263 | -9/Exiles | Identified exit to Mines 9313 | -9/Exiles | Met 8R-AWN 9346 | -9/Exiles | Met EX-HEX 9422 | -9/Exiles | Met EX-DEC 9432 | -9/Exiles | Learned location of Zion (-6) 9582 | -9/Exiles | Build established: Mutant 9617 | -9/Exiles | Entered Mines 9901 | -8/Mines | Build established: Scavenger-Mutant 10216 | -8/Mines | Build established: Mutant 10254 | -8/Mines | Discovered new exit (range 6) 10745 | -8/Mines | Core integrity fell below 20% 10784 | -8/Mines | Discovered new exit (range 8) 10800 | -8/Mines | Entered Materials 10800 | -8/Materials | Evolved 2 slots: Utility x2 10801 | -8/Materials | Identified exit to Factory 10832 | -8/Materials | Central database locked down 11094 | -8/Materials | Repaired Imp. Sensor Array 11327 | -8/Materials | Identified Exp. Sensor Array 11502 | -8/Materials | Lost 3 parts (1n1u1w) 11630 | -8/Materials | Build established: Hacker-Mutant 12289 | -8/Materials | Core integrity fell below 50% 12350 | -8/Materials | Lost 8 parts (2n3u3w) 12595 | -8/Materials | Build established: Scavenger-Mutant 12745 | -8/Materials | Repaired Broken Missile Launcher 13016 | -8/Materials | Discovered exit to Factory (range 10) 15408 | -8/Materials | Repaired Lgt. Armor Plating 15449 | -8/Materials | Repaired Imp. Utility Shielding 15653 | -8/Materials | Entered Factory 15653 | -7/Factory | Evolved 2 slots: Utility x2 15811 | -7/Factory | Discovered new exit (range 15) 15911 | -7/Factory | Identified exit to Factory 16047 | -7/Factory | Identified exit to Lower Caves 16086 | -7/Factory | Build established: Skirmisher 16194 | -7/Factory | Entered Lower Caves 16298 | -7/Lower Caves | Identified exit to Lower Caves 17159 | -7/Lower Caves | Build established: Scavenger-Skirmisher 18078 | -7/Lower Caves | Encountered a Warlord checkpoint 18187 | -7/Lower Caves | Entered another Lower Caves area 18207 | -7/Lower Caves | Discovered exit to Factory (range 12) 20010 | -7/Lower Caves | Identified exit to Data Miner 20714 | -7/Lower Caves | Entered Data Miner 20714 | -7/Data Miner | Discovered new exit (range 6) 20760 | -7/Data Miner | Met Data Miner 20810 | -7/Data Miner | Learned location of Section 7 (-2) 20810 | -7/Data Miner | Acquired the access code to Warlord's prototype stash 20842 | -7/Data Miner | Received God Mode back door access code from Data Miner 20897 | -7/Data Miner | Identified exit to Proximity Caves 20899 | -7/Data Miner | Entered Proximity Caves 20909 | -6/Proximity Caves | Learned Factory emergency access door positions 20986 | -6/Proximity Caves | Escorted by Enhanced Grunt 21033 | -6/Proximity Caves | Lost 3 parts (2u1w) 21356 | -6/Proximity Caves | Learned Factory interactive machine intel 21703 | -6/Proximity Caves | Learned location of 1 exit from Lower Caves 22284 | -6/Proximity Caves | Attracted the attention of an 0b10 checkpoint 22579 | -6/Proximity Caves | Build established: Skirmisher 24592 | -6/Proximity Caves | Found Prototype Device 24593 | -6/Proximity Caves | Identified Exp. Thermal Shield 24617 | -6/Proximity Caves | Discovered exit to Factory (range 14) 24868 | -6/Proximity Caves | Build established: Scavenger-Mutant 24953 | -6/Proximity Caves | Entered Factory 24953 | -6/Factory | Evolved 2 slots: Power x1, Utility x1 24954 | -6/Factory | Identified exit to Extension 24956 | -6/Factory | Loaded intel: 53 interactive machine locations 25942 | -6/Factory | Identified exit to Factory 26075 | -6/Factory | Entered Extension 26141 | -6/Extension | Rescued a captive Derelict 26208 | -6/Extension | Rescued a captive Derelict 26209 | -6/Extension | Rescued a captive Derelict 26256 | -6/Extension | Rescued a captive Derelict 26257 | -6/Extension | Rescued a captive Derelict 26622 | -6/Extension | Repaired Imp. Heavy Armor Plating 26651 | -6/Extension | Rescued a captive Derelict 26652 | -6/Extension | Rescued a captive Derelict 26862 | -6/Extension | Rescued a captive Derelict 26865 | -6/Extension | Rescued a captive Derelict 26903 | -6/Extension | Incoming investigation squad redirected 26920 | -6/Extension | Energy Cycler disabled 26999 | -6/Extension | Destroyed 8 combat bots 27077 | -6/Extension | Discovered exit to Factory (range 10) 27079 | -6/Extension | Discovered new exit (range 6) 27110 | -6/Extension | Identified exit to Cetus 27125 | -6/Extension | First assault squad dispatched 27133 | -6/Extension | Entered Cetus 27171 | -6/Cetus | Spotted Cetus Guard 27171 | -6/Cetus | Spotted Cetus Guard 27187 | -6/Cetus | Spotted Cetus Guard 27194 | -6/Cetus | Destroyed Cetus Guard 27198 | -6/Cetus | Spotted Cetus Guard 27209 | -6/Cetus | Destroyed Cetus Guard 27224 | -6/Cetus | Destroyed Cetus Guard 27226 | -6/Cetus | Lost 4 parts (1n2u1w) 27244 | -6/Cetus | Destroyed Cetus Guard 27316 | -6/Cetus | Core integrity fell below 50% 27378 | -6/Cetus | Lost 12 parts (2p1n7u2w) 27602 | -6/Cetus | Discovered new exit (range 15) 27643 | -6/Cetus | Spotted Cetus Guard 27644 | -6/Cetus | Spotted Cetus Guard 27648 | -6/Cetus | Spotted Cetus Guard 27649 | -6/Cetus | Destroyed Cetus Guard 27651 | -6/Cetus | Destroyed Cetus Guard 27652 | -6/Cetus | Core integrity fell below 20% 27660 | -6/Cetus | Spotted Cetus Guard 27687 | -6/Cetus | Destroyed Cetus Guard 27693 | -6/Cetus | Destroyed Cetus Guard 27714 | -6/Cetus | Discovered exit to Factory (range 16) 27731 | -6/Cetus | Met Revision 17 27744 | -6/Cetus | Destroyed Revision 17 27907 | -6/Cetus | Identified exit to Archives 27909 | -6/Cetus | Entered Archives 28168 | -6/Archives | Discovered new exit (range 15) 28219 | -6/Archives | Discovered new exit (range 16) 28736 | -6/Archives | Identified exit to Hub_04(d) 28738 | -6/Archives | Entered Hub_04(d) 28750 | -6/Hub_04(d) | Discovered exit to Factory (range 16) 29094 | -6/Hub_04(d) | Discovered exit to Factory (range 8) 30000 | -6/Hub_04(d) | Network Hub disabled 30002 | -6/Hub_04(d) | Network Hub disabled 30011 | -6/Hub_04(d) | Spotted Lightning 30012 | -6/Hub_04(d) | Spotted Lightning 30013 | -6/Hub_04(d) | Spotted Lightning 30016 | -6/Hub_04(d) | Spotted Lightning 30017 | -6/Hub_04(d) | Spotted Lightning 30035 | -6/Hub_04(d) | Spotted Lightning 30043 | -6/Hub_04(d) | Spotted Lightning 30043 | -6/Hub_04(d) | Entered Factory 30043 | -5/Factory | Evolved 2 slots: Propulsion x2 30180 | -5/Factory | Sucked down chute 30180 | -5/Factory | Entered Waste 30180 | -5/Waste | The area was eerily silent 30245 | -5/Waste | Found Unknown Protection 30248 | -5/Waste | Identified Damper Plating 30506 | -5/Waste | Discovered new exit (range 13) 30674 | -5/Waste | Identified exit to Factory 30678 | -5/Waste | Entered Factory 31271 | -5/Factory | Repaired Centrium Heavy Treads? 31349 | -5/Factory | Repaired Centrium Medium Armor Plating 31418 | -5/Factory | Repaired Adv. KE Penetrator 31474 | -5/Factory | Repaired Centrium Medium Armor Plating 31512 | -5/Factory | Repaired Quantum Reactor 31897 | -5/Factory | Repaired Broken Lrn. Sensor Array? 31947 | -5/Factory | Identified exit to Upper Caves 32000 | -5/Factory | Central database locked down 32069 | -5/Factory | Discovered new exit (range 10) 32266 | -5/Factory | Entered Upper Caves 32368 | -5/Upper Caves | Learned Factory terminal intel 34304 | -5/Upper Caves | Discovered new exit (range 5) 34311 | -5/Upper Caves | Identified exit to Upper Caves 34486 | -5/Upper Caves | Found Alien Artifact 34486 | -5/Upper Caves | Identified Core Expander 34486 | -5/Upper Caves | Installed Core Expander, added new Utility slot 34936 | -5/Upper Caves | Entered another Upper Caves area 34989 | -5/Upper Caves | Build established: Scavenger-Skirmisher 35477 | -5/Upper Caves | Discovered new exit (range 7) 35498 | -5/Upper Caves | Identified exit to Factory 35506 | -5/Upper Caves | Identified exit to Warlord 35539 | -5/Upper Caves | Build established: Scavenger-Mutant 36278 | -5/Upper Caves | Learned Factory emergency access door positions 37533 | -5/Upper Caves | Learned Factory stockpile data 37560 | -5/Upper Caves | Entered Warlord 37602 | -5/Warlord | Discovered new exit (range 12) 38100 | -5/Warlord | Met Warlord 38114 | -5/Warlord | Opened Warlord's prototype stash 38120 | -5/Warlord | Found Prototype Reactor 38120 | -5/Warlord | Identified Vortex Chain Reactor 38125 | -5/Warlord | Warlord's base attacked by MAIN.C 38138 | -5/Warlord | Found Prototype Device 38138 | -5/Warlord | Identified Thermal Barrier 38142 | -5/Warlord | Found Prototype Processor 38142 | -5/Warlord | Identified Exp. Armor Integrity Analyzer 38264 | -5/Warlord | Found Prototype Energy Gun 38266 | -5/Warlord | Found Prototype Energy Gun 38269 | -5/Warlord | Found Prototype Launcher 38273 | -5/Warlord | Identified Vortex Shotgun (x2) 38475 | -5/Warlord | Warlord forces counterattacked 38571 | -5/Warlord | Spotted Striker 38573 | -5/Warlord | Spotted B-86 Titan 38578 | -5/Warlord | Spotted B-75 Beast 38594 | -5/Warlord | Allies destroyed B-75 Beast 38725 | -5/Warlord | Spotted Striker 38725 | -5/Warlord | Spotted Striker 38725 | -5/Warlord | Spotted Executioner 38737 | -5/Warlord | Identified exit to Proximity Caves 38740 | -5/Warlord | Entered Proximity Caves 38815 | -4/Proximity Caves | Learned location of Testing (-3) 39327 | -4/Proximity Caves | Learned location of 1 exit from Research 39522 | -4/Proximity Caves | Attacked by a faux Warlord 40384 | -4/Proximity Caves | Discovered exit to Factory (range 7) 40488 | -4/Proximity Caves | Entered Factory 40488 | -4/Factory | Accompanied by 2 allies 40488 | -4/Factory | Evolved 2 slots: Propulsion x2 40491 | -4/Factory | Loaded intel: 25 terminal locations 40712 | -4/Factory | Repaired Centrium Medium Armor Plating 40822 | -4/Factory | Repaired Centrium Medium Armor Plating 40931 | -4/Factory | Repaired Centrium Heavy Treads 41040 | -4/Factory | Repaired Centrium Heavy Treads 41219 | -4/Factory | Discovered new exit (range 7) 41229 | -4/Factory | Identified exit to Research 41317 | -4/Factory | Identified exit to Upper Caves 41714 | -4/Factory | Entered Upper Caves 41786 | -4/Upper Caves | Found Alien Artifact 42232 | -4/Upper Caves | Learned Research terminal intel 44056 | -4/Upper Caves | Discovered new exit (range 12) 44073 | -4/Upper Caves | Identified exit to Upper Caves 44456 | -4/Upper Caves | Learned 4 Research zone layouts 45283 | -4/Upper Caves | Entered another Upper Caves area 45368 | -4/Upper Caves | Discovered exit to Research (range 12) 45497 | -4/Upper Caves | Attacked by a delusional Derelict stockpiling Unaware 46612 | -4/Upper Caves | Attracted the attention of an 0b10 checkpoint 46873 | -4/Upper Caves | Learned location of 1 exit from Research 46906 | -4/Upper Caves | Discovered new exit (range 6) 47250 | -4/Upper Caves | Identified exit to Zhirov 47252 | -4/Upper Caves | Entered Zhirov 47252 | -4/Zhirov | Accompanied by 2 allies 47252 | -4/Zhirov | Discovered new exit (range 3) 47281 | -4/Zhirov | Met Zhirov 47316 | -4/Zhirov | Learned location of Quarantine (-2) 47316 | -4/Zhirov | Learned location of Command (-1) 47326 | -4/Zhirov | Zhirov requested help retrieving the SGEMP Prototype 47351 | -4/Zhirov | Found Alien Artifact 47351 | -4/Zhirov | Identified Integrated Dissipator 47351 | -4/Zhirov | Installed Integrated Dissipator, increased core heat dissipation (+20) 47370 | -4/Zhirov | Found Alien Artifact 47638 | -4/Zhirov | Identified exit to Proximity Caves 47641 | -4/Zhirov | Entered Proximity Caves 47641 | -3/Proximity Caves | Accompanied by 2 allies 49070 | -3/Proximity Caves | Discovered exit to Research (range 13) 49645 | -3/Proximity Caves | Identified Vortex Catalyst Activator 49652 | -3/Proximity Caves | Entered Research 49652 | -3/Research | Evolved 2 slots: Utility x2 49653 | -3/Research | Identified exit to Research 49653 | -3/Research | Identified exit to Testing 49655 | -3/Research | Loaded intel: 22 terminal locations 49925 | -3/Research | Discovered exit to Research (range 10) 49929 | -3/Research | Identified exit to Armory 50500 | -3/Research | Found Prototype Processor 50569 | -3/Research | Identified Exp. Target Analyzer 50610 | -3/Research | Repaired Centrium Heavy Treads 50810 | -3/Research | Entered Armory 50972 | -3/Armory | Identified Transdimensional Reconstructor 50972 | -3/Armory | Warped through subspace to slip node 50972 | -3/Armory | Discovered new exit (range 1) 50972 | -3/Armory | Identified exit to Lab 50974 | -3/Armory | Entered Lab 50976 | -3/Lab | Discovered exit to Research (range 9) 50996 | -3/Lab | Unable to decrypt terminal 51008 | -3/Lab | Unable to decrypt terminal 51062 | -3/Lab | Detected for breach 51068 | -3/Lab | Confronted by A5 51122 | -3/Lab | Destroyed A5 51155 | -3/Lab | Gained access to the hidden lab's interior 51173 | -3/Lab | Found Alien Artifact 51186 | -3/Lab | Found Transdimensional Reconstructor 51200 | -3/Lab | Found Alien Artifact 51200 | -3/Lab | Identified Integrated Mediator 51200 | -3/Lab | Installed Integrated Mediator, increased core attachment efficiency. 51214 | -3/Lab | Found Alien Artifact 51214 | -3/Lab | Identified Core Regenerator 51214 | -3/Lab | Used Core Regenerator, restored core integrity (+175) 51246 | -3/Lab | Found Prototype Device 51246 | -3/Lab | Identified AEGIS Remote Shield 51251 | -3/Lab | Found Prototype Hackware 51259 | -3/Lab | Found Prototype Energy Gun 51259 | -3/Lab | Identified Hyp. EM Gauss Rifle 51264 | -3/Lab | Found Prototype Energy Gun 51264 | -3/Lab | Identified Tachyon Dispersion Ray 51308 | -3/Lab | Found Prototype Special Weapon 51308 | -3/Lab | Identified Gui. Remote Datajack 51449 | -3/Lab | Unable to decrypt terminal 51450 | -3/Lab | Found Alien Artifact 51450 | -3/Lab | Identified LC Capacitor 51524 | -3/Lab | Identified Deep Network Scanner 51554 | -3/Lab | Entered Research 51554 | -2/Research | Warlord forces began assault on 0b10 51554 | -2/Research | Evolved 2 slots: Power x1, Utility x1 51664 | -2/Research | Research machine network offline 51964 | -2/Research | Found Adv. Powered Armor 51967 | -2/Research | Found Adv. Powered Armor 51971 | -2/Research | Found Adv. Powered Armor 51974 | -2/Research | Found Adv. Powered Armor 52030 | -2/Research | Found Prototype Processor 52030 | -2/Research | Identified Exp. Targeting Computer 52037 | -2/Research | Discovered new exit (range 11) 52039 | -2/Research | Found Prototype Processor 52039 | -2/Research | Identified Exp. Core Analyzer 52055 | -2/Research | Identified exit to Access 52067 | -2/Research | Borebot progress halted 52105 | -2/Research | Spotted Executioner 52105 | -2/Research | Spotted Striker 52116 | -2/Research | Destroyed Striker 52124 | -2/Research | Destroyed Executioner 52264 | -2/Research | Spotted Executioner 52271 | -2/Research | Spotted Striker 52274 | -2/Research | Destroyed Executioner 52281 | -2/Research | Destroyed Striker 52455 | -2/Research | Borebot progress halted 52467 | -2/Research | Discovered exit to Access (range 13) 52799 | -2/Research | Spotted Striker 52802 | -2/Research | Spotted Striker 52808 | -2/Research | Destroyed Striker 52820 | -2/Research | Destroyed Striker 52948 | -2/Research | Spotted Striker 52969 | -2/Research | Destroyed Striker 53031 | -2/Research | Discovered new exit (range 11) 53031 | -2/Research | Spotted B-90 Cyclops 53068 | -2/Research | Destroyed B-90 Cyclops 53094 | -2/Research | Identified exit to Quarantine 53109 | -2/Research | Found Quantum Capacitor 53114 | -2/Research | Entered Quarantine 53194 | -2/Quarantine | Found Alien Artifact 53268 | -2/Quarantine | Identified Dimensional Node Initializer 53268 | -2/Quarantine | Identified Subatomic Replicator 53315 | -2/Quarantine | Found Alien Artifact 53364 | -2/Quarantine | First assault squad dispatched 53382 | -2/Quarantine | Incoming assault squad redirected 53418 | -2/Quarantine | Incoming investigation squad redirected 53540 | -2/Quarantine | Found Alien Slashing Weapon 53593 | -2/Quarantine | Found Alien Artifact 53666 | -2/Quarantine | Intercept squad dispatched 53670 | -2/Quarantine | Spotted Tracker 53671 | -2/Quarantine | Spotted Tracker 53680 | -2/Quarantine | Spotted Combat Programmer 53681 | -2/Quarantine | Spotted Combat Programmer 53682 | -2/Quarantine | Destroyed Tracker 53695 | -2/Quarantine | Destroyed Tracker 53702 | -2/Quarantine | System corruption reached 10% 53705 | -2/Quarantine | Destroyed Combat Programmer 53715 | -2/Quarantine | Destroyed Combat Programmer 53733 | -2/Quarantine | Used Subatomic Replicator to replicate Alien Artifact 53734 | -2/Quarantine | Identified Phase Armor 53744 | -2/Quarantine | Found Exp. Targeting Computer 53762 | -2/Quarantine | Identified Sigix Broadsword 53774 | -2/Quarantine | Found Alien Impact Weapon 53893 | -2/Quarantine | Discovered exit to Access (range 10) 54004 | -2/Quarantine | Found Alien Energy Cannon 54138 | -2/Quarantine | Identified Core Stripper 54170 | -2/Quarantine | Spotted Fortress 54179 | -2/Quarantine | Destroyed Fortress 54192 | -2/Quarantine | Found Vortex Chain Reactor 54196 | -2/Quarantine | Found Prototype Device 54201 | -2/Quarantine | Found Prototype Device 54337 | -2/Quarantine | Discovered new exit (range 5) 54342 | -2/Quarantine | Identified exit to Section 7 54344 | -2/Quarantine | Entered Section 7 54344 | -2/Section 7 | Identified Core Reset Matrix 54344 | -2/Section 7 | Identified Phase Armor 54344 | -2/Section 7 | Identified Hpw. Transdimensional Reconstructor 54344 | -2/Section 7 | Identified Core Cannon 54344 | -2/Section 7 | Used Core Reset Matrix 54347 | -2/Section 7 | Spotted S7 Guard 54348 | -2/Section 7 | Sensed 22 artifacts in vicinity 54368 | -2/Section 7 | Destroyed S7 Guard 54390 | -2/Section 7 | Found Core Membrane 54390 | -2/Section 7 | Installed Core Membrane, gained immunity to corruption 54398 | -2/Section 7 | Found Prototype Protection 54399 | -2/Section 7 | Identified Exp. EM Disruption Field 54401 | -2/Section 7 | Identified Exp. Force Field 54437 | -2/Section 7 | Found Microwarp Drive 54479 | -2/Section 7 | Found Integrated Dissipator 54479 | -2/Section 7 | Installed Integrated Dissipator, increased core heat dissipation (+20) 54594 | -2/Section 7 | First assault squad dispatched 55025 | -2/Section 7 | Build established: Alien-Mutant 55126 | -2/Section 7 | Found Spacefold Activator 55439 | -2/Section 7 | Spotted B-90 Cyclops 55482 | -2/Section 7 | Spotted S7 Guard 55499 | -2/Section 7 | Destroyed S7 Guard 55543 | -2/Section 7 | Found Sigix Shearcannon 55603 | -2/Section 7 | Discovered exit to Access (range 12) 55710 | -2/Section 7 | Found Integrated Reactor 55710 | -2/Section 7 | Installed Integrated Reactor, increased core energy generation (+10) 55752 | -2/Section 7 | Initialized slip node 55839 | -2/Section 7 | Spotted Alpha 7 55919 | -2/Section 7 | Found Integrated Reactor 55919 | -2/Section 7 | Installed Integrated Reactor, increased core energy generation (+10) 55959 | -2/Section 7 | Core integrity fell below 50% 56006 | -2/Section 7 | Destroyed 10 combat bots 56082 | -2/Section 7 | Intercept squad dispatched 56100 | -2/Section 7 | Spotted Tracker 56103 | -2/Section 7 | Destroyed Tracker 56103 | -2/Section 7 | Spotted Tracker 56108 | -2/Section 7 | Destroyed Tracker 56122 | -2/Section 7 | Spotted Combat Programmer 56126 | -2/Section 7 | Destroyed Combat Programmer 56143 | -2/Section 7 | Spotted Combat Programmer 56157 | -2/Section 7 | Destroyed Combat Programmer 56214 | -2/Section 7 | Spotted Executioner 56215 | -2/Section 7 | Spotted Executioner 56226 | -2/Section 7 | Destroyed Executioner 56231 | -2/Section 7 | Destroyed Executioner 56260 | -2/Section 7 | Found Exp. Core Analyzer 56353 | -2/Section 7 | Found Drained L-Cannon 56354 | -2/Section 7 | Installed L-Cannon capacitor 56359 | -2/Section 7 | Identified Hvy. Regenerative Plating 56493 | -2/Section 7 | Spotted B-99 Colossus 56613 | -2/Section 7 | Found LRC Insulator 56613 | -2/Section 7 | Installed LRC Insulator, gained EM resistance (25) 56625 | -2/Section 7 | Found LRC Armor 56625 | -2/Section 7 | Installed LRC Armor, increased core integrity (+250) 56705 | -2/Section 7 | Warped through subspace to slip node 56879 | -2/Section 7 | Build established: Alien-Skirmisher 56888 | -2/Section 7 | Entered Access 56888 | -1/Access | Evolved 2 slots: Weapon x2 57061 | -1/Access | Identified exit to Command 57170 | -1/Access | First assault squad dispatched 57200 | -1/Access | Incoming assault squad redirected 57322 | -1/Access | Build established: Alien-Assassin 57957 | -1/Access | Entered Command 58209 | -1/Command | Disengaged cave seal 58209 | -1/Command | Derelicts emerged from the dark tunnel 58209 | -1/Command | Welcomed Warlord to Command 58237 | -1/Command | Incoming investigation squad redirected 58258 | -1/Command | Disengaged cave seal 58258 | -1/Command | Derelicts emerged from the dark tunnel 58329 | -1/Command | Derelicts emerged from the dark tunnel 58372 | -1/Command | Build established: Alien-Mutant 58426 | -1/Command | Fired L-Cannon 58426 | -1/Command | 0b10 Conduit disabled 58429 | -1/Command | MAIN.C activated Command garrisons 58441 | -1/Command | Fired L-Cannon 58441 | -1/Command | Destroyed MAIN.C 58451 | *** | Heading to fleet! Last Messages --------------- 58447_ Slug penetrates L-61 Swordsman. 58447_ P-80 Master resets G-73 Enforcer, system corruption cleaned. 58447_ P-80 Master resets S-43 Plague, system corruption cleaned. 58447_ G-73 Enforcer destroyed. 58448_ B-74 Champion destroyed. 58448_ Slug penetrates MS-OXW(g). 58449_ B-74 Champion heat spikes uncontrollably. 58449_ G-73 Enforcer destroyed. 58449_ H-88 Terminator destroyed. 58449_ S-43 Plague destroyed. 58449_ L-61 Swordsman suffers critical hit (Smash). 58449_ L-61 Swordsman system corrupted by crushing effect. 58449_ L-61 Swordsman knocked back. 58450_ L-61 Swordsman system terminally corrupted. 58450_ K-01 Serf collects debris. 58450_ P-80 Master fails to hack H5-AKL(l). Warlord: Victory! Sure there's still lots to do, but without MAIN.C at the helm 0b10 doesn't stand a chance. We've got this... Map ----- +----------------------------------------------------+ | ?????????????????????????????????????????????????? | | ?????????????????????????????????????????????????? | | ?????????????????????????????????????????????????? | | ?????????????????????????????????????????????????? | | ?????????????????????????????????????????????????? | | ????????????????????????????????????? ??????????? | | ?????????????????????????????????????"""?????????? | | ?????????????????????????????????????""Y?""??????? | | ?????????????????????????????????????? ? ??????? | | ?????????????????????????????????????? ??????## | | ??????????????????????????????????????? ??????# | | ?????????????????????????????????????###+###????# | | ?????????????????????????????????????# R #????# | | ?????????????????????????????????????# #????# | | ?????????????????????????????????????# #????# | | ?????????????????????????????????????# #????# | | ????????????????????????????????###### ###### | | ????????????????????????????????# # | | ????????????????????????????????# # | | ???????????????#?????####???????# /% | | ?????????#?????# ???# ???????# R MM # | | ????b!p%##!W ### W ### W ######## M / | | ????!gg|!%!* g/ ###### | | ????hg!gg=[%= K M / #????# | | ???pg$gg=[%%[ k g %b/ R#????# | | ???p[!i=[%*[ % W @/ #????# | | ???!!=b!h=== l g%* / #????# | | ???????###/W ### W ### W ##########+### #????# | | ?????????????????????# ???????? # #????## | | ?????????????????????####?????? / # #?????? | | ?????????????????????????????# # #?????? | | ?????????????????????????????# # #?????? | | ?????????????????????????????# # #?????? | | ?????????????????????????????# # #?????? | | ?????????????????????????????# # #?????? | | ?????????????????????????????#####+#### #?????? | | ?????????????????????????????????????? #?????? | | ?????????????????????????????????????? #?????? | | ?????????????????????????????????????? #?????? | | ?????????????????????????????????????? #?????? | | ????????????????????????????????????? #?????? | | ????????????????????????????????????? #?????? | | ????????????????????????????????????? #?????? | | ????????????????????????????????????? = +?????? | | ?????????????????????????????????????? #?????? | | ??????????????????????????????????????# #?????? | | ??????????????????????????????????????? ????????? | | ?????????????????????????????????????????????????? | | ?????????????????????????????????????????????????? | | ?????????????????????????????????????????????????? | +----------------------------------------------------+ Best States ------------- Heat Dissipation 130 Coolant Potential 120 Energy Generation 128 Energy Capacity 1150 Matter Stores 300 Matter Capacity 600 Sight Range 23 Robot Scan Range 20 Terrain Scan Range 20 Terrain Scan Density 10 Jamming Range 16 Power Amplification 40 Base Temperature (-) 200 Armor Coverage 2550 Resistance: KI 30 Resistance: TH 50 Resistance: EM 75 Utility Shielding 66 Weapon Cycling 20 Phase Shifting 15 Evasion (%) 55 Targeting Accuracy 12 Melee Accuracy 8 Core Analysis 8 Armor Integrity Analysis 50 Recoil Reduction 6 Force Boost 20 Offensive Hacking 26 Defensive Hacking 10 Trap Extractor Capacity 8 Item Schematics ----------------- Biometal Heavy Treads | -2/Section 7 | Hacked Robot Schematics ------------------ None Fabricated ------------ Nothing Alien Tech Used ----------------- Core Expander Integrated Dissipator Transdimensional Reconstructor Integrated Mediator Core Regenerator LC Capacitor Subatomic Replicator Phase Armor Sigix Broadsword Core Stripper Core Reset Matrix Core Membrane Integrated Reactor Dimensional Node Initializer Microwarp Drive Spacefold Activator LRC Insulator LRC Armor Core Cannon Sigix Shearcannon L-Cannon Achievements -------------- Left-hand Path Challenges ------------ None Game ------ Seed CannonFlakStabilizer Manual? 0 Play Time 11:47:38 Cumulative 248.8 hours Start 2022.07.23 @ 16:55:48 End 2022.07.30 @ 09:48:39 Sessions 75 Manual Loads 0 Difficulty Rogue Special Mode None Game No. 37 Rogue 30 Adventurer 1 Explorer 6 Win Type 2 Total 15 Types 5/1/6/0/0/1/1/0/1 Lore% 81 Gallery% 82 Achievement% 67 Wizard Run 0 Options --------- ASCII 0 Keyboard 0 Movement Mouse Keybinds 0 Fullscreen 1 Font 18/SmallcapsGlow Map View 76x50 Tactical HUD 1 Map Filters NONE Filters NONE Steam 1 RUN: 14bf1b43-d108-42fa-8dae-057661758b8d